Workbook

Sheet Niveles
B2: DECLARACION JURADA SUSTENTO DEL COSTO DE EJECUCION DE GASTO DEL MES DE JUNIO - 2021
B3: UND. EJEC. : 005 INSTITUTO NACIONAL DE SALUD MENTAL "HONORIO DELGADO - HIDEYO NOGUCHI"
B4: CATEGORIA Y NIVEL | C4: PEA | D4: REMUNERACION NOMBRADO | E4: PEA | F4: REMUNERACION CONTRATADO | G4: PEA | H4: GUARDIA HOSPITALARIA | I4: COMPENS. ECONOMICAS | J4: INCENTIVO UNICO CAFAE | K4: TOTAL GENERAL | M4: CATEGORIA Y NIVEL | N4: PEA | O4: PENSION
B5: 01, CARRERA ADMINISTRATIVA | M5: 01, CARRERA ADMINISTRATIVA
B6: FUNC.Y DIRECTIVOS | C6: =SUM(C7:C9) -> 17 | D6: 21930.34 | E6: 0 | F6: 0 | G6: 0 | H6: 0 | I6: 0 | J6: 68314.72 | K6: 90245.06 | M6: FUNC.Y DIRECTIVOS | N6: =SUM(N7:N8) -> 4 | O6: =SUM(O7:O8) -> 5808.42
B7: F-4 | C7: 6 | D7: 8526.5 | J7: 28535.85 | K7: =SUM(D7,F7,H7,I7,J7) -> 37062.35 | M7: F-2 | N7: 1 | O7: 1349.88
B8: F-3 | C8: 9 | D8: 10439.37 | J8: 33364.53 | K8: 43803.9 | M8: F-1 | N8: 3 | O8: 4458.54
B9: F-1 | C9: 2 | D9: 2964.47 | J9: 6414.34 | K9: 9378.81 | M9: PROFESIONALES | N9: =SUM(N10:N13) -> 2 | O9: =SUM(O10:O13) -> 2173.22
B10: PROFESIONALES | C10: =SUM(C11:C15) -> 19 | D10: =SUM(D11:D15) -> 21426.16 | E10: =SUM(E11:E15) -> 1 | F10: 905.72 | G10: 0 | H10: 0 | I10: 0 | J10: 50423.4 | K10: 72755.28 | M10: SPB | N10: 1 | O10: 1253.57
B11: SPB | D11: 0 | K11: 0 | M11: SPC | O11: 0
B12: SPC | C12: 1 | D12: 1450.55 | J12: 3707.17 | K12: 5157.72 | M12: SPD | N12: 1 | O12: 919.65
B13: SPD | C13: 8 | D13: =9087.52+675.08 -> 9762.6 | J13: =21949.84-1312.48 -> 20637.36 | K13: 30399.96 | L13: 6554.86 | M13: SPE
B14: SPE | C14: 2 | D14: 1861.02 | J14: 2734.34 | K14: 4595.36 | M14: TECNICOS | N14: =SUM(N15:N17) -> 32 | O14: =SUM(O15:O17) -> 34075.39
B15: SPF | C15: 8 | D15: 8351.99 | E15: 1 | F15: 905.72 | J15: 23344.53 | K15: 32602.24 | M15: STA | N15: 28 | O15: 29637.76
B16: TECNICOS | C16: =SUM(C17:C22) -> 69 | D16: 63452.39 | E16: 7 | F16: 5960.4 | G16: 0 | H16: 0 | I16: 0 | J16: 130637.75 | K16: 200050.54 | M16: STB | N16: 4 | O16: 4437.63
B17: STA | C17: 14 | D17: 13836.21 | J17: 28340.38 | K17: 42176.59 | M17: STC
B18: STB | C18: 33 | D18: 29862.53 | J18: 46956.61 | K18: 76819.14 | M18: SUB -TOTAL ADM (01) | N18: =SUM(N6,N9,N14) -> 38 | O18: =+O6+O9+O14 -> 42057.03
B19: STC | C19: 8 | D19: 7196.68 | J19: 18797.36 | K19: 25994.04 | M19: PROFESIONALES DE LA SALUD
B20: STD | C20: 12 | D20: 10849.97 | E20: 3 | F20: 2565 | J20: =25480.68-820.3 -> 24660.38 | K20: 38075.35 | M20: MEDICOS | N20: =SUM(N22:N24) -> 7 | O20: =SUM(O22:O24) -> 15495.29
B21: STE | C21: 1 | D21: 854 | J21: 1367.17 | K21: 2221.17
B22: STF | C22: 1 | D22: 853 | E22: 4 | F22: 3395.4 | J22: =13723.03-3207.18 -> 10515.85 | K22: 14764.25 | M22: N-5 | N22: 3 | O22: 6195.77
B23: AUXILIARES | C23: =SUM(C24:C25) -> 11 | D23: 8815.37 | E23: 0 | F23: 0 | G23: 0 | H23: 0 | I23: 0 | J23: 14218.57 | K23: 23033.94 | M23: N-4 | N23: 1 | O23: 2128.37
B24: SAB. | C24: 3 | D24: 2485.83 | J24: 4101.51 | K24: 6587.34 | M24: N-3 | N24: 3 | O24: 7171.15
B25: SAD | C25: 8 | D25: 6329.54 | G25: . | J25: 10117.06 | K25: 16446.6 | M25: ENFERMERAS | N25: =SUM(N26:N29) -> 6 | O25: =SUM(O26:O29) -> 5442.25
B26: SUB -TOTAL ADM (01) | C26: =C6+C10+C16+C23 -> 116 | D26: =+D6+D10+D16+D23 -> 115624.26 | E26: =+E6+E10+E16+E23 -> 8 | F26: =+F6+F10+F16+F23 -> 6866.12 | G26: =SUM(G6,G10,G16,G23) -> 0 | H26: =+H6+H10+H16+H23 -> 0 | I26: =+I6+I10+I16+I23 -> 0 | J26: =+J6+J10+J16+J23 -> 263594.44 | K26: =+K6+K10+K16+K23 -> 386084.82 | M26: 14 | N26: 4 | O26: 3299.96
B27: PERSONAL CON LABORES ASISTENCIALES | M27: 13
B28: PROFESIONALES | C28: =SUM(C29:C30) -> 2 | D28: 20482.07 | E28: 0 | F28: 0 | G28: 0 | H28: 0 | I28: 0 | J28: 0 | K28: 20482.07 | M28: 12 | N28: 2 | O28: 2142.29
B29: F4 | C29: 2 | D29: 20482.07 | K29: =SUM(D29,F29,H29,I29,J29) -> 20482.07 | M29: 11
B30: SPD | K30: 0 | M30: TECNOLOGOS MEDICOS | N30: =SUM(N31:N32) -> 2 | O30: =SUM(O31:O32) -> 2032.84
B31: TECNICOS | C31: =SUM(C32:C37) -> 179 | D31: =SUM(D32:D37) -> 374967.64 | E31: 15 | F31: 35156 | G31: 94 | H31: 57304.19 | I31: 32870.4 | J31: 0 | K31: 500298.23 | M31: V | N31: 1 | O31: 1063.2
B32: STA | C32: 9 | D32: 19423.5 | G32: 3 | H32: 1608.26 | I32: 1422 | K32: 22453.76 | M32: IV | N32: 1 | O32: 969.64
B33: STB | C33: 81 | D33: 172297.72 | G33: 35 | H33: 19092.21 | I33: 13848 | K33: 205237.93 | M33: PSICOLOGOS | N33: =SUM(N34:N37) -> 2 | O33: =SUM(O34:O37) -> 2162.37
B34: STC | C34: 44 | D34: 89873.42 | G34: 26 | H34: 13996.74 | I34: 7062.4 | K34: 110932.56 | M34: VII | N34: 1 | O34: 1270.55
B35: STD | C35: 11 | D35: 23001 | G35: 6 | H35: 2968.83 | I35: 1738 | K35: 27707.83 | M35: VI
B36: STE | C36: 6 | D36: 12468 | G36: 2 | H36: 1056.32 | I36: 1098 | K36: 14622.32 | M36: V | N36: 1 | O36: 891.82
B37: STF | C37: 28 | D37: 57904 | E37: 15 | F37: 35156 | G37: 22 | H37: 18581.83 | I37: =5024+2678 -> 7702 | K37: 119343.83 | M37: IV
B38: AUXILIAR | C38: =SUM(C39:C41) -> 10 | D38: =SUM(D39:D41) -> 20698 | E38: =SUM(E39:E41) -> 0 | F38: 0 | G38: =SUM(G39:G41) -> 8 | H38: 3647.05 | I38: 1580 | J38: 0 | K38: 25925.05 | M38: OTROS PROF. DE LA SALUD | N38: =SUM(N39:N41) -> 4 | O38: =SUM(O39:O41) -> 4809.4
B39: SAB. | C39: 5 | D39: 10385 | G39: 4 | H39: 2071.03 | I39: 790 | K39: 13246.03 | M39: VII | N39: 3 | O39: 3721.44
B40: SAC | C40: 1 | D40: 2068 | G40: 1 | H40: 215.02 | I40: 158 | K40: 2441.02 | M40: V | N40: 1 | O40: 1087.96
B41: SAD | C41: 4 | D41: 8245 | G41: 3 | H41: 1361 | I41: 632 | K41: 10238
B42: SUB TOTAL | C42: =SUM(C28+C31+C38) -> 191 | D42: =D28+D31+D38 -> 416147.71 | E42: =SUM(E28+E31+E38) -> 15 | F42: =F28+F31+F38 -> 35156 | G42: 102 | H42: 60951.24 | I42: 34450.4 | J42: 0 | K42: 546705.35 | M42: SUB TOTAL (2) | N42: =SUM(N20,N25,N30,N33,N38) -> 21 | O42: =O20+O25+O30+O33+O38 -> 29942.15
B43: MEDICOS | C43: =SUM(C44:C48) -> 36 | D43: 232938 | E43: 12 | F43: 62788.2 | G43: 4 | H43: 5614.43 | I43: 46700 | J43: 0 | K43: 348040.63 | M43: SUB TOTAL PUP (1+2) | N43: =SUM(N18+N42) -> 59 | O43: =O18+O42 -> 71999.18
B44: N-5 | C44: 14 | D44: 101724 | I44: 12300 | K44: =SUM(D44,F44,H44,I44,J44) -> 114024 | M44: NO RENOVABLES | N44: 4 | O44: 1884.83
B45: N-4 | C45: 3 | D45: 20478 | I45: 2600 | K45: 23078 | M45: 2.2.11.21
B46: N-3 | C46: 7 | D46: 44352 | G46: 1 | H46: 1569.26 | I46: 6650 | K46: 52571.26 | M46: 2.2.23.43
B47: N-2 | K47: 0 | M47: 2.2.2 3.4 2
B48: N-1 | C48: 12 | D48: 66384 | E48: 12 | F48: 62788.2 | G48: 3 | H48: 4045.17 | I48: =14800+10350 -> 25150 | K48: 158367.37 | M48: TOTAL GENERAL | N48: =SUM(N43,N44) -> 63 | O48: =SUM(O43+O44+O45,O46,O47) -> 73884.01
B49: OTROS PROF. DE LA SALUD | C49: =SUM(C50:C54) -> 17 | D49: 67055 | E49: 2 | F49: 6688 | G49: 7 | H49: 6354.36 | I49: 300 | J49: 0 | K49: =SUM(K50:K54) -> 80397.36
B50: VIII | C50: 7 | D50: 31297 | G50: 1 | H50: 1172.17 | I50: 300 | K50: 32769.17
B51: VII | C51: 1 | D51: 4158 | K51: 4158
B52: VI | C52: 1 | D52: =3409+491 -> 3900 | K52: 3900
B53: V | C53: 3 | D53: 10980 | G53: 1 | H53: 1233.85 | K53: 12213.85
B54: IV | C54: 5 | D54: 16720 | E54: 2 | F54: 6688 | G54: 5 | H54: 3948.34 | K54: 27356.34
B55: OBSTETRIZ | C55: =+C56 -> 3 | D55: =SUM(D56) -> 10032 | E55: 0 | F55: =SUM(F56) -> 0 | H55: =SUM(H56) -> 0 | I55: =SUM(I56) -> 0 | J55: =SUM(J56) -> 0 | K55: =SUM(K56:K56) -> 10032
B56: I | C56: 3 | D56: 10032 | K56: 10032
B57: ENFERMERAS | C57: =SUM(C58:C62) -> 68 | D57: 264005 | E57: 3 | F57: 3344 | G57: 26 | H57: 34794.1 | I57: 22950 | J57: =SUM(J58:J62) -> 0 | K57: 325093.1
B58: 14 | C58: 32 | D58: 143072 | G58: 4 | H58: 5732.7 | I58: 8550 | K58: 157354.7
B59: 13 | D59: 0 | I59: 0 | K59: 0
B60: 12 | C60: 1 | D60: 1365 | I60: 0 | K60: 1365
B61: 11 | C61: 8 | D61: 29280 | G61: 5 | H61: 7023.96 | I61: 4050 | K61: 40353.96
B62: 10 | C62: 27 | D62: 90288 | E62: 3 | F62: 3344 | G62: 17 | H62: 22037.44 | I62: =9900+450 -> 10350 | K62: 126019.44
B63: TECNOLOGOS MEDICOS | C63: =SUM(C64:C66) -> 9 | D63: =SUM(D64:D66) -> 38541 | E63: 0 | F63: =SUM(F64:F66) -> 3344 | G63: 0 | H63: 0 | I63: 0 | J63: 0 | K63: 41885
B64: VIII | C64: 7 | D64: 31297 | K64: 31297
B65: VI | C65: 1 | D65: 3900 | K65: 3900
B66: IV | C66: 1 | D66: 3344 | F66: 3344 | K66: 6688
B67: PSICOLOGOS | C67: =SUM(C68:C71) -> 30 | D67: 110585 | E67: 2 | F67: 6688 | G67: 2 | H67: 3547.35 | I67: 1350 | J67: 0 | K67: 122170.35
B68: VIII | C68: 7 | D68: 31297 | K68: 31297
B69: VI | C69: 2 | D69: 7800 | G69: 1 | H69: 1295.55 | K69: 9095.55
B70: V | C70: 4 | D70: 14640 | K70: 14640
B71: IV | C71: 17 | D71: 56848 | E71: 2 | F71: 6688 | G71: 1 | H71: 2251.8 | I71: 1350 | K71: 67137.8
B72: SUB TOTAL | C72: =+C43+C49+C55+C57+C63+C67 -> 163 | D72: =D43+D49+D55+D57+D63+D67 -> 723156 | E72: =+E43+E49+E55+E57+E63+E67 -> 19 | F72: =F43+F49+F55+F57+F63+F67 -> 82852.2 | G72: =+G43+G49+G55+G57+G63+G67 -> 39 | H72: 50310.24 | I72: 71300 | J72: 0 | K72: 927618.44
B73: SUB TOTAL ASISTENCIAL (2) | C73: =+C72+C42 -> 354 | D73: =+D42+D72 -> 1139303.71 | E73: =+E72+E42 -> 34 | F73: =+F42+F72 -> 118008.2 | G73: 141 | H73: 111261.48 | I73: 105750.4 | J73: 0 | K73: 1474323.79
B74: SUB TOTAL PUP NORMAL (1+2) | C74: =+C26+C73 -> 470 | D74: 1254927.97 | E74: 42 | F74: 124874.32 | G74: 141 | H74: 111261.48 | I74: 105750.4 | J74: 263594.44 | K74: 1860408.61
B75: MEDICOS RESIDENTES | G75: 11 | H75: 4422.34 | K75: =SUM(D75,F75,H75,I75,J75) -> 4422.34
B76: DESTACADOS | J76: 4101.51 | K76: 4101.51
B77: 2.1.19.31 Asig.x 25/30 | C77: 1 | D77: 5328 | K77: 5328
B78: 2.1.19.21 CTS | K78: 0
B79: 2.1.19.13 ESCOLARIDAD | K79: 0
B80: 2.1.19.33 Comp.Vac. | K80: 0
B81: SUB TOTAL ASISTENCIAL (3) | C81: =C73 -> 354 | D81: =SUM(D75:D80) -> 5328 | F81: 0 | G81: 11 | H81: 4422.34 | I81: 0 | J81: 4101.51 | K81: 13851.85
B82: 21.31.15-CUOTA PATRONAL 9% | C82: 492 | D82: 84099 | K82: 84099
B83: 21.31.16-SCTR | C83: 492 | D83: 11369.48 | K83: 11369.48
B84: SUB TOTAL CONTIBUC(4) | D84: =SUM(D82:D83) -> 95468.48 | F84: =SUM(F82:F83) -> 0 | H84: =SUM(H82:H83) -> 0 | I84: =SUM(I82:I83) -> 0 | J84: =SUM(J82:J83) -> 0 | K84: =SUM(K82:K83) -> 95468.48
B85: TOTAL GENERAL | C85: =C74 -> 470 | D85: =+D74+D81+D84 -> 1355724.45 | F85: =+F74+F81+F84 -> 124874.32 | G85: =G74+G75+G76 -> 152 | H85: =+H74+H81+H84 -> 115683.82 | I85: =+I74+I81+I84 -> 105750.4 | J85: =+J74+J81+J84 -> 267695.95 | K85: 1969728.94
B86: JVM/BVR/rcc. | J86: 03 de setiembre 2021

Sheet Activos
C1: DELARACION JURADA DE EJECUCION DE PAGO PLANILLA DE ACTIVOS - JUNIO 2021
A2: PLIEGO : 11 MINSA
A3: UNIDAD EJECUTORA : 005-INSTITUTO NACIONAL DE SALUD MENTAL "HONORIO DELGADO-HIDEYO NOGUCHI"
A4: N° | B4: N° PLAZA | C4: APELLIDOS Y NOMBRES | D4: DNI | E4: CARGO CLASIFICADO | F4: CONDICON | G4: NIVEL | H4: REMUNERACION | I4: GUARDIA | J4: ENTREGA ECONOMICAS | K4: INCENTIVO CAFAE | L4: TOTAL
A5: 1 | B5: 010124 | C5: ABREGU CASTRO VICTOR RAUL | D5: 07126457 | E5: TECNICO/A ASISTENCIAL | F5: NOMBRADO | G5: TB | H5: 2127 | I5: 598.5 | J5: 158 | K5: 0 | L5: =SUM(H5:K5) -> 2883.5
A6: =+A5+1 -> 2 | B6: 010125 | C6: ACOSTA SOTO LUZ DANIELA | D6: 25638803 | E6: ESP. EN LOGISTICA | F6: NOMBRADO | G6: TB | H6: 880.2 | I6: 0 | J6: 0 | K6: 1367.17 | L6: 2247.37
A7: 3 | B7: 010245 | C7: ADRIANO RAMIREZ MELANIO | D7: 42954465 | E7: TEC. EN ENFERMERIA I | F7: NOMBRADO | G7: TF | H7: 2068 | I7: 504.38 | J7: 158 | K7: 0 | L7: 2730.38
A8: 4 | B8: 010703 | C8: AGUILA MARTINEZ TEODORO | D8: 06073499 | E8: ASIST. ADMINIST. II | F8: NOMBRADO | G8: PE | H8: 930.51 | I8: 0 | J8: 0 | K8: 1367.17 | L8: 2297.68
A9: 5 | B9: 010126 | C9: AGUILAR ARROYO ROCIO | D9: 08121564 | E9: TEC. EN BIBLIOTECA I | F9: NOMBRADO | G9: TB | H9: 904.01 | I9: 0 | J9: 0 | K9: 1367.17 | L9: 2271.18
A10: 6 | B10: 010571 | C10: ALBORNOZ MUÑOZ DELIA PATRICIA | D10: 09540432 | E10: MEDICO | F10: NOMBRADO | G10: 17 | H10: 6336 | I10: 0 | J10: 1700 | K10: 0 | L10: 8036
A11: 7 | B11: 010005 | C11: ALBURQUERQUE JARAMILLO FLOR DE MARI | D11: 07195756 | E11: ENFERMERA/O | F11: NOMBRADO | G11: 14 | H11: 4471 | I11: 0 | J11: 450 | K11: 0 | L11: 4921
A12: 8 | B12: 010127 | C12: ALCANTARA ABANTO AVERCIO ERMELANIO | D12: 08603261 | E12: ESP. EN LOGISTICA | F12: NOMBRADO | G12: TA | H12: 1099.43 | I12: 0 | J12: 0 | K12: 1367.17 | L12: 2466.6
A13: 9 | B13: 010006 | C13: ALDEA ALTAMIRANO LUCIA ELIZABETH | D13: 07217949 | E13: ENFERMERA/O | F13: NOMBRADO | G13: 14 | H13: 4471 | I13: 0 | J13: 0 | K13: 0 | L13: 4471
A14: 10 | B14: 010128 | C14: ALIAGA ESTRADA CARMEN FRANCISCA | D14: 06244411 | E14: ASIST. EJECUTIVO II | F14: NOMBRADO | G14: TB | H14: 904.01 | I14: 0 | J14: 0 | K14: 1367.17 | L14: 2271.18
A15: 11 | B15: 010009 | C15: ALVARADO CHAVEZ PETRONILA ELIZABETH | D15: 08504909 | E15: ENFERMERA/O | F15: NOMBRADO | G15: 14 | H15: 4471 | I15: 0 | J15: 450 | K15: 0 | L15: 4921
A16: 12 | B16: 010129 | C16: ALVARADO RAMOS RAMON CECILIO | D16: 07162982 | E16: ASIST. ADMINIST. I | F16: NOMBRADO | G16: TB | H16: 867.49 | I16: 0 | J16: 0 | K16: 1367.17 | L16: 2234.66
A17: 13 | B17: 010036 | C17: ALVARADO SANCHEZ FRANZ JACINTO | D17: 08446804 | E17: MEDICO I | F17: NOMBRADO | G17: 17 | H17: 6336 | I17: 0 | J17: 900 | K17: 0 | L17: 7236
A18: 14 | B18: 010010 | C18: ALVAREZ MACHUCA MILITZA CARMEN VIRGINIA | D18: 07222524 | E18: PSICOLOGO | F18: NOMBRADO | G18: 85 | H18: 4471 | I18: 0 | J18: 0 | K18: 0 | L18: 4471
A19: 15 | B19: 010818 | C19: ALVAREZ SIRIO CARLOS LUIS | D19: 07429392 | E19: PILOTO DE AMBULANCIA | F19: NOMBRADO | G19: TD | H19: 2091 | I19: 0 | J19: 158 | K19: 0 | L19: 2249
A20: 16 | B20: 010130 | C20: ANDAHUA ROCA VICTOR FLORENCIO | D20: 07979600 | E20: TECNICO/A ASISTENCIAL | F20: NOMBRADO | G20: TB | H20: 2127 | I20: 551.94 | J20: 158 | K20: 0 | L20: 2836.94
A21: 17 | B21: 010131 | C21: ANDIA QUEVEDO MARIA ANTONIETA | D21: 08031286 | E21: TEC. EN ENFERMERIA II | F21: NOMBRADO | G21: TB | H21: 2127 | I21: 0 | J21: 158 | K21: 0 | L21: 2285
A22: 18 | B22: 010865 | C22: ANTEZANA BALTAZAR ANDRES ADI | D22: 15953873 | E22: TEC. EN ENFERMERIA | F22: NOMBRADO | G22: TF | H22: 2068 | I22: 504.38 | J22: 158 | K22: 0 | L22: 2730.38
A23: 19 | B23: 010133 | C23: ANTEZANA RAMOS DE ALVAREZ LOURDES TERESA | D23: 07147037 | E23: TEC. EN ENFERMERIA II | F23: NOMBRADO | G23: TB | H23: 2127 | I23: 551.94 | J23: 158 | K23: 0 | L23: 2836.94
A24: 20 | B24: 010281 | C24: ANTUNEZ RODRIGUEZ MARILUZ ANTONIETA | D24: 08588674 | E24: PSICOLOGO I | F24: NOMBRADO | G24: 83 | H24: 3900 | I24: 0 | J24: 0 | K24: 0 | L24: 3900
A25: 21 | B25: 010136 | C25: ARANA CHAVEZ DALILA | D25: 08654915 | E25: COORDINADOR II | F25: NOMBRADO | G25: F1 | H25: 1732.94 | I25: 0 | J25: 0 | K25: 3207.17 | L25: 4940.11
A26: 22 | B26: 010013 | C26: ARELLANO KANASHIRO MANUEL CESAR | D26: 06599292 | E26: MEDICO I | F26: NOMBRADO | G26: 19 | H26: 7266 | I26: 0 | J26: 1700 | K26: 0 | L26: 8966
A27: 23 | B27: 010014 | C27: AREVALO GUZMAN MERCEDES AMALIA | D27: 07730120 | E27: ENFERMERA/O | F27: NOMBRADO | G27: 14 | H27: 4471 | I27: 0 | J27: 450 | K27: 0 | L27: 4921
A28: 24 | B28: 010137 | C28: ARIAS CORRALES PAULA ROSA | D28: 08578746 | E28: TEC. EN ENFERMERIA II | F28: NOMBRADO | G28: TB | H28: 2127 | I28: 551.94 | J28: 158 | K28: 0 | L28: 2836.94
A29: 25 | B29: 010672 | C29: ARIAS ROBLES PAOLA MARISOL | D29: 10601107 | E29: TEC. EN ENFERMERIA I | F29: NOMBRADO | G29: TC | H29: 2109 | I29: 504.38 | J29: 158 | K29: 0 | L29: 2771.38
A30: 26 | B30: 010138 | C30: ARIAS TIRADO BENITO ALBERTO | D30: 06110367 | E30: TECNICO/A ADMINIST. I | F30: NOMBRADO | G30: TC | H30: 859.71 | I30: 0 | J30: 0 | K30: 1367.17 | L30: 2226.88
A31: 27 | B31: 010015 | C31: ARISMENDI CORTEZ VDA DE BARRAZA ROSA AMALIA | D31: 08380554 | E31: ENFERMERA/O | F31: NOMBRADO | G31: 14 | H31: 4471 | I31: 0 | J31: 0 | K31: 0 | L31: 4471
A32: 28 | B32: 010770 | C32: ARONE MALLQUI PANFILO | D32: 10651686 | E32: ENFERMERA/O | F32: NOMBRADO | G32: 10 | H32: 3344 | I32: 1227.13 | J32: 300 | K32: 0 | L32: 4871.13
A33: 29 | B33: 010139 | C33: ARPHI HUAYHUA LUIS BELTRAN | D33: 06910682 | E33: PILOTO DE AMBULANCIA | F33: NOMBRADO | G33: TB | H33: 2127 | I33: 551.94 | J33: 158 | K33: 0 | L33: 2836.94
A34: 30 | B34: 010768 | C34: ARTEAGA AYALA EVELYN ROSSH | D34: 42347474 | E34: TEC. EN FARMACIA I | F34: NOMBRADO | G34: TF | H34: 2068 | I34: 504.38 | J34: 158 | K34: 0 | L34: 2730.38
A35: 31 | B35: 010119 | C35: ARTEAGA GAMARRA TORIBIO ALFONSO | D35: 32875120 | E35: PILOTO DE AMBULANCIA | F35: NOMBRADO | G35: TF | H35: 2068 | I35: 0 | J35: 158 | K35: 0 | L35: 2226
A36: 32 | B36: 010433 | C36: ARTICA CONCHA CARLOS IVAN | D36: 08152877 | E36: TEC. EN NUTRICION II | F36: NOMBRADO | G36: TD | H36: 2091 | I36: 551.94 | J36: 158 | K36: 0 | L36: 2800.94
A37: 33 | B37: 010140 | C37: ASENJO DIAZ ROSENDO | D37: 10385335 | E37: TECNICO/A ASISTENCIAL | F37: NOMBRADO | G37: TD | H37: 2091 | I37: 551.94 | J37: 158 | K37: 0 | L37: 2800.94
A38: 34 | B38: 010864 | C38: ASTOCONDOR YGREDA VICTORIA CECIBEL | D38: 09902937 | E38: TEC. EN ENFERMERIA | F38: NOMBRADO | G38: TF | H38: 2068 | I38: 0 | J38: 158 | K38: 0 | L38: 2226
A39: 35 | B39: 010141 | C39: ATALAYA CHACON IRMA MERY | D39: 08625652 | E39: ESP. ADMINIST. III | F39: NOMBRADO | G39: PD | H39: 1345.99 | I39: 0 | J39: 0 | K39: 3207.17 | L39: 4553.16
A40: 36 | B40: 010142 | C40: ATAUCURI RODRIGUEZ DE LI MARTHA ALICIA | D40: 07147497 | E40: TEC. EN ENFERMERIA II | F40: NOMBRADO | G40: TC | H40: 2109 | I40: 515.27 | J40: 308 | K40: 0 | L40: 2932.27
A41: 37 | B41: 010016 | C41: AURAZO DIAZ NURY NOEMI | D41: 06705480 | E41: TRABAJADOR/A SOCIAL | F41: NOMBRADO | G41: 28 | H41: 4471 | I41: 0 | J41: 0 | K41: 0 | L41: 4471
A42: 38 | B42: 010791 | C42: AVILA MARTINEZ JUDITH NOEMI | D42: 43479667 | E42: ENFERMERA/O | F42: NOMBRADO | G42: 10 | H42: 3344 | I42: 0 | J42: 450 | K42: 0 | L42: 3794
A43: 39 | B43: 010144 | C43: AYALA QUIÑONEZ ANA MARIA | D43: 10617172 | E43: TEC. EN ENFERMERIA II | F43: NOMBRADO | G43: TC | H43: 2109 | I43: 551.94 | J43: 158 | K43: 0 | L43: 2818.94
A44: 40 | B44: 010145 | C44: BALLON TRUJILLO MIRIAM GEOVANNA | D44: 08555032 | E44: ABOGADO/A ESPECIALISTA | F44: NOMBRADO | G44: PD | H44: 1351.59 | I44: 0 | J44: 0 | K44: 3707.17 | L44: 5058.76
A45: 41 | B45: 010146 | C45: BARBOZA NUÑEZ MARIA LUZ | D45: 07376402 | E45: TEC. EN ENFERMERIA II | F45: NOMBRADO | G45: TB | H45: 2127.89 | I45: 0 | J45: 158 | K45: 0 | L45: 2285.89
A46: 42 | B46: 010673 | C46: BARRUETA GONZALES CARMEN ROSA | D46: 09552182 | E46: AUXILIAR ASISTENCIAL | F46: NOMBRADO | G46: AB | H46: 2077 | I46: 0 | J46: 158 | K46: 0 | L46: 2235
A47: 43 | B47: 010428 | C47: BASTIDAS PATILLA WALTER EDWING | D47: 20081582 | E47: TEC. EN ENFERMERIA II | F47: NOMBRADO | G47: TC | H47: 2109 | I47: 505.38 | J47: 158 | K47: 0 | L47: 2772.38
A48: 44 | B48: 010148 | C48: BAUTISTA SANCHEZ FLORENCIO SABINO | D48: 08842607 | E48: ESP. EN DES. INFORM. I | F48: NOMBRADO | G48: TB | H48: 872.1 | I48: 0 | J48: 0 | K48: 1367.17 | L48: 2239.27
A49: 45 | B49: 010738 | C49: BAUTISTA SANCHEZ JULY DORIS | D49: 10675576 | E49: TEC. EN ENFERMERIA I | F49: NOMBRADO | G49: TC | H49: 2109 | I49: 0 | J49: 308 | K49: 0 | L49: 2417
A50: 46 | B50: 010150 | C50: BENDEZU MUÑOZ YRMA | D50: 08442456 | E50: TECNICO/A ASISTENCIAL | F50: NOMBRADO | G50: TD | H50: 2091 | I50: 0 | J50: 158 | K50: 0 | L50: 2249
A51: 47 | B51: 010379 | C51: BERNA BUSTAMANTE ANA MARIA | D51: 09969092 | E51: TEC. EN ENFERMERIA II | F51: NOMBRADO | G51: TC | H51: 2109 | I51: 504.38 | J51: 158 | K51: 0 | L51: 2771.38
A52: 48 | B52: 010152 | C52: BERNAOLA SANCHEZ MELQUIADES AURELIO | D52: 08450667 | E52: ESP. EN LOGISTICA | F52: NOMBRADO | G52: TB | H52: 877.2 | I52: 0 | J52: 0 | K52: 1367.17 | L52: 2244.37
A53: 49 | B53: 010501 | C53: BERNUY MAYTA MARTIN ALEJANDRO | D53: 10201745 | E53: ENFERMERA/O | F53: NOMBRADO | G53: 10 | H53: 3344 | I53: 0 | J53: 0 | K53: 0 | L53: 3344
A54: 50 | B54: 010019 | C54: BERROCAL GIRALDEZ ROLANDO URBANO | D54: 15379192 | E54: TECNOLOGO MEDICO | F54: NOMBRADO | G54: 75 | H54: 4471 | I54: 0 | J54: 0 | K54: 0 | L54: 4471
A55: 51 | B55: 010647 | C55: BRAVO CHIPANA OLGA | D55: 07448107 | E55: TEC. EN ENFERMERIA I | F55: NOMBRADO | G55: TF | H55: 2068 | I55: 551.94 | J55: 308 | K55: 0 | L55: 2927.94
A56: 52 | B56: 010154 | C56: BRAVO GARCIA CARMEN ALFONSINA | D56: 07791802 | E56: TEC. EN ENFERMERIA II | F56: NOMBRADO | G56: TC | H56: 562.4 | I56: 0 | J56: 42.13 | K56: 0 | L56: 604.53
A57: 53 | B57: 010801 | C57: BRAVO SECLEN SUSETTY MILAGROS | D57: 41082967 | E57: OBSTETRA | F57: NOMBRADO | G57: 1 | H57: 3344 | I57: 0 | J57: 0 | K57: 0 | L57: 3344
A58: 54 | B58: 010158 | C58: BULLON VELIZ LILIANA MAGDALENA | D58: 07137149 | E58: OBSTETRA | F58: NOMBRADO | G58: 1 | H58: 3344 | I58: 0 | J58: 0 | K58: 0 | L58: 3344
A59: 55 | B59: 010645 | C59: BURGA IDROGO YEMNA YANET | D59: 41449527 | E59: TEC. EN ENFERMERIA | F59: NOMBRADO | G59: TF | H59: 2068 | I59: 0 | J59: 158 | K59: 0 | L59: 2226
A60: 56 | B60: 010408 | C60: BUSTAMANTE HERRERA LINDOMIRA | D60: 40011787 | E60: TEC. EN FARMACIA I | F60: NOMBRADO | G60: TC | H60: 2109 | I60: 431.04 | J60: 158 | K60: 0 | L60: 2698.04
A61: 57 | B61: 010575 | C61: CABALLERO PERALTA JULY ESTHER | D61: 40042163 | E61: MEDICO | F61: NOMBRADO | G61: 15 | H61: 5532 | I61: 0 | J61: 0 | K61: 0 | L61: 5532
A62: 58 | B62: 010025 | C62: CABALLERO TAYA ANA MARIA DEL ROCIO | D62: 08152099 | E62: QUIMICO FARMACEUTICO | F62: NOMBRADO | G62: 25 | H62: 3660 | I62: 1233.85 | J62: 0 | K62: 0 | L62: 4893.85
A63: 59 | B63: 010026 | C63: CABEZA LOPEZ HERNAN BENIGNO | D63: 07149201 | E63: ENFERMERA/O | F63: NOMBRADO | G63: 10 | H63: 3344 | I63: 1227.13 | J63: 450 | K63: 0 | L63: 5021.13
A64: 60 | B64: 010020 | C64: CABRA BRAVO MIRIAM | D64: 08555468 | E64: ENFERMERA/O | F64: NOMBRADO | G64: 14 | H64: 4471 | I64: 0 | J64: 450 | K64: 0 | L64: 4921
A65: 61 | B65: 010790 | C65: CACERES TACO ELISA ISABEL | D65: 42028181 | E65: MEDICO | F65: NOMBRADO | G65: 15 | H65: 5532 | I65: 1348.39 | J65: 1350 | K65: 0 | L65: 8230.39
A66: 62 | B66: 010771 | C66: CADILLO SANCHEZ CARINA MARIBEL | D66: 32046348 | E66: ENFERMERA/O | F66: NOMBRADO | G66: 10 | H66: 3344 | I66: 964.15 | J66: 750 | K66: 0 | L66: 5058.15
A67: 63 | B67: 010834 | C67: CALDERON HUAMAN KARLA JACQUELINE | D67: 40212054 | E67: PSICOLOGO | F67: NOMBRADO | G67: 81 | H67: 3344 | I67: 0 | J67: 450 | K67: 0 | L67: 3794
A68: 64 | B68: 010112 | C68: CALIZAYA DELGADO JESUS RICHARD | D68: 29549737 | E68: MEDICO I | F68: NOMBRADO | G68: 15 | H68: 5532 | I68: 0 | J68: 1700 | K68: 0 | L68: 7232
A69: 65 | B69: 010022 | C69: CALLE GUAILUPO ANA LUISA | D69: 08721772 | E69: ENFERMERA/O | F69: NOMBRADO | G69: 14 | H69: 4471 | I69: 0 | J69: 0 | K69: 0 | L69: =SUM(H69:K69) -> 4471
A70: 66 | B70: 010162 | C70: CALLUPE LOPEZ JUANA | D70: 10517107 | E70: TEC. EN ENFERMERIA II | F70: NOMBRADO | G70: TB | H70: 2127 | I70: 0 | J70: 158 | K70: 0 | L70: 2285
A71: 67 | B71: 010163 | C71: CALSIN QUISPE JULIA GERALDINA | D71: 07208878 | E71: ASIST. ADMINIST. I | F71: NOMBRADO | G71: TB | H71: 881.29 | I71: 0 | J71: 0 | K71: 1367.17 | L71: 2248.46
A72: =+A71+1 -> 68 | B72: 010164 | C72: CAMACHO RAMOS CARINA YOBANI | D72: 06724954 | E72: TEC. EN ENFERMERIA II | F72: NOMBRADO | G72: TB | H72: 2127 | I72: 0 | J72: 158 | K72: 0 | L72: 2285
A73: 69 | B73: 010165 | C73: CAMPOS LEVANO EUDOCIA FELICITA | D73: 10578571 | E73: TEC. EN ENFERMERIA II | F73: NOMBRADO | G73: TB | H73: 2127 | I73: 551.94 | J73: 308 | K73: 0 | L73: 2986.94
A74: 70 | B74: 010166 | C74: CANELO VITANCIO VICTOR MANUEL | D74: 07232005 | E74: ESP. EN LOGISTICA | F74: NOMBRADO | G74: TB | H74: 867.49 | I74: 0 | J74: 0 | K74: 1367.17 | L74: 2234.66
A75: 71 | B75: 010168 | C75: CAPCHA ROJAS JORGE NARCIZO | D75: 08550116 | E75: TECNICO/A ASISTENCIAL | F75: NOMBRADO | G75: TB | H75: 2127 | I75: 551.94 | J75: 158 | K75: 0 | L75: 2836.94
A76: 72 | B76: 010018 | C76: CARAZAS VERA MARIA SOLEDAD | D76: 40049897 | E76: MEDICO I | F76: NOMBRADO | G76: 15 | H76: 5532 | I76: 0 | J76: 1700 | K76: 0 | L76: 7232
A77: 73 | B77: 010745 | C77: CARBAJAL TORRES FANNY PATRICIA | D77: 10306139 | E77: MEDICO | F77: NOMBRADO | G77: 15 | H77: 5532 | I77: 0 | J77: 1700 | K77: 0 | L77: 7232
A78: 74 | B78: 010763 | C78: CARHUAPOMA HUAMAN NORA | D78: 27742349 | E78: TEC. EN NUTRICION I | F78: NOMBRADO | G78: TF | H78: 2068 | I78: 265.58 | J78: 158 | K78: 0 | L78: 2491.58
A79: 75 | B79: 010170 | C79: CARHUAS BALDEON CIPRIAN | D79: 06082331 | E79: TEC. EN ENFERMERIA II | F79: NOMBRADO | G79: TC | H79: 2109 | I79: 0 | J79: 158 | K79: 0 | L79: 2267
A80: 76 | B80: 010762 | C80: CARHUAS GARCIA ELIZABETH | D80: 25799515 | E80: TEC. EN ENFERMERIA I | F80: NOMBRADO | G80: TF | H80: 2068 | I80: 0 | J80: 158 | K80: 0 | L80: 2226
A81: 77 | B81: 010171 | C81: CARO ROSALES HERNAN SAMUEL | D81: 06899223 | E81: MECANICO AUTOMOTRIZ | F81: NOMBRADO | G81: TB | H81: 883.24 | I81: 0 | J81: 0 | K81: 1367.17 | L81: 2250.41
A82: 78 | B82: 010315 | C82: CARRANZA ZUÑIGA CARMEN OFELIA | D82: 06238275 | E82: ESP. ADMINIST. I | F82: NOMBRADO | G82: TA | H82: 875.25 | I82: 0 | J82: 0 | K82: 1367.17 | L82: 2242.42
A83: 79 | B83: 010172 | C83: CARREÑO CARRERA MERCEDES PILAR MARI | D83: 07358267 | E83: ASIST. PROFESIONAL I | F83: NOMBRADO | G83: TA | H83: 875.25 | I83: 0 | J83: 0 | K83: 3207.17 | L83: 4082.42
A84: 80 | B84: 010674 | C84: CASAS CAMPOS MILAGROS SOLEDAD | D84: 10581882 | E84: TEC. EN ENFERMERIA I | F84: NOMBRADO | G84: TC | H84: 2109 | I84: 289.36 | J84: 158 | K84: 0 | L84: 2556.36
A85: 81 | B85: 010176 | C85: CASTILLO QUISPE ELIZABETH MONICA | D85: 10072887 | E85: TEC. EN ENFERMERIA II | F85: NOMBRADO | G85: TC | H85: 2109 | I85: 551.94 | J85: 158 | K85: 0 | L85: 2818.94
A86: 82 | B86: 010177 | C86: CASTRO AREVALO KEYLA | D86: 07577454 | E86: TEC. EN ENFERMERIA II | F86: NOMBRADO | G86: TB | H86: 2127 | I86: 0 | J86: 158 | K86: 0 | L86: 2285
A87: 83 | B87: 010412 | C87: CASTRO ROJO MARINA RAMONA | D87: 21448775 | E87: ENFERMERA/O I | F87: NOMBRADO | G87: 10 | H87: 3344 | I87: 0 | J87: 0 | K87: 0 | L87: 3344
A88: 84 | B88: 010434 | C88: CATAÑO SANCHEZ CARLOS ALBERTO | D88: 08667143 | E88: AUXILIAR ADMINISTRATIVO | F88: NOMBRADO | G88: AD | H88: 813.05 | I88: 0 | J88: 0 | K88: 1367.17 | L88: 2180.22
A89: 85 | B89: 010820 | C89: CAVERO TOVAR VICTOR AUGUSTO | D89: 08144920 | E89: TECNICO/A ADMINIST. I | F89: NOMBRADO | G89: TD | H89: 855 | I89: 0 | J89: 0 | K89: 3207.17 | L89: 4062.17
A90: 86 | B90: 010179 | C90: CAYLLAHUA POCCO VISITACION MARIA | D90: 07305091 | E90: ASIST. EJECUTIVO I | F90: NOMBRADO | G90: TB | H90: 1086.51 | I90: 0 | J90: 0 | K90: 1367.17 | L90: 2453.68
A91: 87 | B91: 010746 | C91: CAYO MEDINA CARMEN JULISSA | D91: 21555375 | E91: MEDICO | F91: NOMBRADO | G91: 15 | H91: 5532 | I91: 0 | J91: 1700 | K91: 0 | L91: 7232
A92: 88 | B92: 010608 | C92: CERNA SANCHEZ ESTHER DEL ROSARIO | D92: 45490503 | E92: JEFE/A DE OFICINA | F92: NOMBRADO | G92: C3 | H92: 1124.3 | I92: 0 | J92: 0 | K92: 3707.17 | L92: 4831.47
A93: 89 | B93: 010058 | C93: CERNA ZARZOSA SANTA EUGENIA | D93: 09527409 | E93: ENFERMERA/O | F93: NOMBRADO | G93: 10 | H93: 3344 | I93: 1344 | J93: 450 | K93: 0 | L93: 5138
A94: 90 | B94: 010121 | C94: CERVANTES BURGA FLOR DE MARIA | D94: 07986785 | E94: TEC. EN ENFERMERIA I | F94: NOMBRADO | G94: TB | H94: 2127 | I94: 551.94 | J94: 158 | K94: 0 | L94: 2836.94
A95: 91 | B95: 010027 | C95: CESPEDES CORONADO CARLOS HUMBERTO | D95: 08385735 | E95: MEDICO | F95: NOMBRADO | G95: 19 | H95: 7266 | I95: 0 | J95: 900 | K95: 0 | L95: 8166
A96: 92 | B96: 010182 | C96: CEVALLOS ASENCIOS INGRID SUSAN | D96: 06685084 | E96: TEC. EN ENFERMERIA II | F96: NOMBRADO | G96: TB | H96: 2127 | I96: 0 | J96: 158 | K96: 0 | L96: 2285
A97: 93 | B97: 010183 | C97: CHAHUA RIVERA JOSE ANTONIO | D97: 08376807 | E97: ESP. ADMINIST. II | F97: NOMBRADO | G97: PC | H97: 1450.55 | I97: 0 | J97: 0 | K97: 3707.17 | L97: 5157.72
A98: 94 | B98: 010184 | C98: CHAUPIS ISIDRO ORLANDO | D98: 07882151 | E98: TEC. EN ENFERMERIA II | F98: NOMBRADO | G98: TB | H98: 2127 | I98: 551.94 | J98: 158 | K98: 0 | L98: 2836.94
A99: 95 | B99: 010185 | C99: CHAVEZ ALVARADO VDA DE NARCIZO MARIA VICTORIA | D99: 10786014 | E99: TEC. EN ENFERMERIA II | F99: NOMBRADO | G99: TC | H99: 2109 | I99: 0 | J99: 158 | K99: 0 | L99: 2267
A100: 96 | B100: 010186 | C100: CHAVEZ HUAMAN JUAN DE DIOS | D100: 06737496 | E100: TECNICO/A ASISTENCIAL | F100: NOMBRADO | G100: TB | H100: 2127 | I100: 0 | J100: 158 | K100: 0 | L100: 2285
A101: 97 | B101: 010249 | C101: CHAVEZ MALLQUI MIGUEL ANGEL | D101: 25759238 | E101: TECNICO/A ASISTENCIAL | F101: NOMBRADO | G101: TE | H101: 2078 | I101: 0 | J101: 158 | K101: 0 | L101: 2236
A102: 98 | B102: 010188 | C102: CHUMPITAZI MONTEVERDE FREDDA CLAUDIA | D102: 08506103 | E102: ASIST. ADMINIST. I | F102: NOMBRADO | G102: TB | H102: 872.1 | I102: 0 | J102: 0 | K102: 1367.17 | L102: 2239.27
A103: 99 | B103: 010189 | C103: CHUQUIMAJO BARRIENTOS DE PINO ANA MARIA | D103: 08578277 | E103: TEC. EN ENFERMERIA II | F103: NOMBRADO | G103: TB | H103: 2127 | I103: 0 | J103: 158 | K103: 0 | L103: 2285
A104: 100 | B104: 010837 | C104: CHURA FLORES SYNTIA SUNEV | D104: 44135948 | E104: TEC. EN ENFERMERIA | F104: NOMBRADO | G104: TF | H104: 2068 | I104: 0 | J104: 158 | K104: 0 | L104: 2226
A105: 101 | B105: 010190 | C105: COBEÑAS PUICON CECILIA | D105: 09904071 | E105: TEC. EN ENFERMERIA II | F105: NOMBRADO | G105: TB | H105: 2127 | I105: 299.25 | J105: 308 | K105: 0 | L105: 2734.25
A106: 102 | B106: 010029 | C106: CONDORCHUA VILLAVERDE LUPE DORA | D106: 08258331 | E106: TRABAJADOR/A SOCIAL | F106: NOMBRADO | G106: 27 | H106: 4158 | I106: 0 | J106: 0 | K106: 0 | L106: 4158
A107: 103 | B107: 010541 | C107: CONDORI CASAFRIA ROY VICTOR | D107: 41062335 | E107: TEC. EN ENFERMERIA I | F107: NOMBRADO | G107: TE | H107: 2078 | I107: 504.38 | J107: 308 | K107: 0 | L107: 2890.38
A108: 104 | B108: 010422 | C108: CONTRERAS HERNANDEZ ELVA JENNY | D108: 07631915 | E108: ENFERMERA/O | F108: NOMBRADO | G108: 10 | H108: 3344 | I108: 0 | J108: 450 | K108: 0 | L108: 3794
A109: 105 | B109: 010063 | C109: CONTRERAS TINOCO ERIKA | D109: 40849396 | E109: ENFERMERA/O | F109: NOMBRADO | G109: 11 | H109: 3660 | I109: 0 | J109: 450 | K109: 0 | L109: 4110
A110: 106 | B110: 010192 | C110: CORDOVA CUSIHUAMAN RAYDA | D110: 08555031 | E110: ASIST. ADMINIST. I | F110: NOMBRADO | G110: TB | H110: 880.2 | I110: 0 | J110: 0 | K110: 1367.17 | L110: 2247.37
A111: 107 | B111: 010193 | C111: CORREA SOMONTES BERTHA | D111: 07212875 | E111: TECNICO/A ASISTENCIAL | F111: NOMBRADO | G111: TB | H111: 2127 | I111: 0 | J111: 158 | K111: 0 | L111: 2285
A112: 108 | B112: 010194 | C112: CORREA SOMONTES ESPERANZA ELVIRA | D112: 07126301 | E112: ASIST. EJECUTIVO I | F112: NOMBRADO | G112: TB | H112: 1085.34 | I112: 0 | J112: 0 | K112: 1367.17 | L112: 2452.51
A113: 109 | B113: 010031 | C113: CORTEZ VASQUEZ ESMERALDA VICENTA | D113: 06923615 | E113: ENFERMERA/O | F113: NOMBRADO | G113: 14 | H113: 4471 | I113: 0 | J113: 450 | K113: 0 | L113: 4921
A114: 110 | B114: 010195 | C114: CRESPO RAMOS RAUL | D114: 06910129 | E114: TECNICO/A ASISTENCIAL | F114: NOMBRADO | G114: TB | H114: 2127 | I114: 551.94 | J114: 158 | K114: 0 | L114: 2836.94
A115: 111 | B115: 010196 | C115: CRISTOBAL HUAMAN HERMELINDA ROSALBINA | D115: 08322414 | E115: TEC. EN ENFERMERIA II | F115: NOMBRADO | G115: TC | H115: 2109 | I115: 0 | J115: 158 | K115: 0 | L115: 2267
A116: 112 | B116: 010065 | C116: CRUZ CAMPOS VICTOR ORLANDO | D116: 09629568 | E116: MEDICO I | F116: NOMBRADO | G116: 17 | H116: 6336 | I116: 0 | J116: 900 | K116: 0 | L116: 7236
A117: 113 | B117: 010432 | C117: CRUZ LABAN VDA DE MEJIA MARIA EUGENIA | D117: 08549506 | E117: TEC. EN ENFERMERIA II | F117: NOMBRADO | G117: TC | H117: 1606.36 | I117: 0 | J117: 158 | K117: 0 | L117: 1764.36
A118: 114 | B118: 010767 | C118: CRUZ URDANEGUI SOCORRO | D118: 06937497 | E118: TRABAJADOR/A SOCIAL | F118: NOMBRADO | G118: 24 | H118: 3344 | I118: 0 | J118: 0 | K118: 0 | L118: 3344
A119: 115 | B119: 010143 | C119: CRUZADO DIAZ LIZARDO | D119: 18158390 | E119: MEDICO I | F119: NOMBRADO | G119: 17 | H119: 6336 | I119: 1569.26 | J119: 1350 | K119: 0 | L119: 9255.26
A120: 116 | B120: 010155 | C120: CUADROS GREY JUAN EDUARDO | D120: 08674871 | E120: TECNICO/A ASISTENCIAL | F120: NOMBRADO | G120: TD | H120: 2091 | I120: 551.94 | J120: 158 | K120: 0 | L120: 2800.94
A121: 117 | B121: 010435 | C121: CUADROS GREY ROBERTO FRANK | D121: 09606435 | E121: TECNICO/A EN MANTENIMIENTO | F121: NOMBRADO | G121: TF | H121: 853 | I121: 0 | J121: 0 | K121: 3207.17 | L121: 4060.17
A122: 118 | B122: 010675 | C122: CUENCA PAREDES PATRICIA MAGALI | D122: 15359858 | E122: ENFERMERA/O | F122: NOMBRADO | G122: 10 | H122: 3344 | I122: 1380.78 | J122: 0 | K122: 0 | L122: 4724.78
A123: 119 | B123: 010032 | C123: CUEVA ZARAGOZA GLADYS TERESA | D123: 08606493 | E123: ENFERMERA/O I | F123: NOMBRADO | G123: 14 | H123: 4471 | I123: 0 | J123: 450 | K123: 0 | L123: 4921
A124: 120 | B124: 010197 | C124: DA COSTA PENA BASILIO | D124: 06100907 | E124: ESP. EN LOGISTICA | F124: NOMBRADO | G124: TB | H124: 867.46 | I124: 0 | J124: 0 | K124: 1367.17 | L124: 2234.63
A125: 121 | B125: 010198 | C125: DAVILA VILLANUEVA GLORIA ESTEFITA | D125: 08549196 | E125: AUXILIAR ADMINISTRATIVO | F125: NOMBRADO | G125: AD | H125: 371.69 | I125: 0 | J125: 0 | K125: 546.87 | L125: 918.56
A126: 122 | B126: 010418 | C126: DE LA CRUZ FLORES ILDAURA | D126: 06971862 | E126: QUIMICO FARMACEUTICO | F126: NOMBRADO | G126: 24 | H126: 3344 | I126: 0 | J126: 0 | K126: 0 | L126: 3344
A127: 123 | B127: 010199 | C127: DE LA CRUZ MEDINA FELICITAS MAFALDA | D127: 09347349 | E127: AUXILIAR ADMINISTRATIVO | F127: NOMBRADO | G127: AD | H127: 860.73 | I127: 0 | J127: 0 | K127: 1367.17 | L127: 2227.9
A128: 124 | B128: 010560 | C128: DE LA CRUZ TORIBIO TEODORO | D128: 06872883 | E128: TECNICO/A ASISTENCIAL | F128: NOMBRADO | G128: TE | H128: 2078 | I128: 0 | J128: 158 | K128: 0 | L128: 2236
A129: 125 | B129: 010085 | C129: DE LA VEGA BARRETO PILAR ALICIA | D129: 08345494 | E129: TRABAJADOR/A SOCIAL | F129: NOMBRADO | G129: 25 | H129: 3660 | I129: 0 | J129: 0 | K129: 0 | L129: 3660
A130: 126 | B130: 010819 | C130: DEL AGUILA CANALES DENNIS ANGEL | D130: 40578710 | E130: TECNICO/A ADMINIST. I | F130: NOMBRADO | G130: TD | H130: 855 | I130: 0 | J130: 0 | K130: 3207.17 | L130: 4062.17
A131: 127 | B131: 010202 | C131: DEL CARPIO CADENAS JUAN ANTONIO | D131: 07149169 | E131: TEC. EN ENFERMERIA II | F131: NOMBRADO | G131: TB | H131: 2127 | I131: 0 | J131: 158 | K131: 0 | L131: 2285
A132: 128 | B132: 010035 | C132: DELGADO CASTILLO DEISY MARLENE | D132: 08643471 | E132: ENFERMERA/O | F132: NOMBRADO | G132: 14 | H132: 4471 | I132: 0 | J132: 0 | K132: 0 | L132: 4471
A133: 129 | B133: 010821 | C133: DIAZ ASTO MARA PATRICIA | D133: 40306873 | E133: TECNICO/A ADMINIST. I | F133: NOMBRADO | G133: TD | H133: 855 | I133: 0 | J133: 0 | K133: 1367.17 | L133: =SUM(H133:K133) -> 2222.17
A134: 130 | B134: 010753 | C134: DIAZ ESPINOZA LOURDES LUCIA | D134: 09030014 | E134: MEDICO I | F134: NOMBRADO | G134: 19 | H134: 7266 | I134: 0 | J134: 0 | K134: 0 | L134: 7266
A135: 131 | B135: 010573 | C135: DIAZ HUACO MARIA DEL CARMEN | D135: 29219886 | E135: MEDICO | F135: NOMBRADO | G135: 17 | H135: 6336 | I135: 0 | J135: 900 | K135: 0 | L135: 7236
A136: =+A135+1 -> 132 | B136: 010742 | C136: DIVIZZIA ACOSTA MAGALY YANINA | D136: 10389365 | E136: PSICOLOGO | F136: NOMBRADO | G136: 81 | H136: 3344 | I136: 0 | J136: 0 | K136: 0 | L136: 3344
A137: 133 | B137: 010023 | C137: ENRIQUEZ CACERES MANUEL IGNACIO | D137: 29533833 | E137: MEDICO I | F137: NOMBRADO | G137: 18 | H137: 6826 | I137: 0 | J137: 900 | K137: 0 | L137: 7726
A138: 134 | B138: 010204 | C138: ESPINOZA ESPINOZA ELEODORO | D138: 08616646 | E138: TECNICO/A ASISTENCIAL | F138: NOMBRADO | G138: TC | H138: 2109 | I138: 551.94 | J138: 158 | K138: 0 | L138: 2818.94
A139: 135 | B139: 010234 | C139: ESPINOZA PARDO MOISES | D139: 40181660 | E139: ESP. EN SOPORTE INFORMATIC | F139: NOMBRADO | G139: TD | H139: 855 | I139: 0 | J139: 0 | K139: 1367.17 | L139: 2222.17
A140: 136 | B140: 010205 | C140: ESPINOZA VELIZ MANUEL JESUS | D140: 06718168 | E140: ASIST. PROFESIONAL I | F140: NOMBRADO | G140: AD | H140: 813.05 | I140: 0 | J140: 0 | K140: 1367.17 | L140: 2180.22
A141: 137 | B141: 010542 | C141: ESPINOZA ZAPATA MARIA VICTORIA | D141: 08145852 | E141: ENFERMERA/O | F141: NOMBRADO | G141: 12 | H141: 1365 | I141: 0 | J141: 0 | K141: 0 | L141: 1365
A142: 138 | B142: 010676 | C142: ESTRADA SIPION VILMA | D142: 09989355 | E142: TEC. EN ENFERMERIA I | F142: NOMBRADO | G142: TC | H142: 2109 | I142: 551.94 | J142: 158 | K142: 0 | L142: 2818.94
A143: 139 | B143: 010206 | C143: ESTRADA ZUMAETA NADITH | D143: 08389566 | E143: TECNICO/A ADMINIST. I | F143: NOMBRADO | G143: TC | H143: 884.81 | I143: 0 | J143: 0 | K143: 3207.17 | L143: 4091.98
A144: 140 | B144: 010593 | C144: EXEBIO ALTAMIRANO DE LEVANO MELVI LILIANA | D144: 06132719 | E144: TRABAJADOR/A SOCIAL | F144: NOMBRADO | G144: 25 | H144: 3660 | I144: 0 | J144: 0 | K144: 0 | L144: 3660
A145: 141 | B145: 010207 | C145: FABIAN CALDAS ENRIQUE ELAN | D145: 07614702 | E145: ESP. EN COMUNIC. SOCIAL I | F145: NOMBRADO | G145: TD | H145: 855 | I145: 0 | J145: 0 | K145: 1367.17 | L145: 2222.17
A146: 142 | B146: 010038 | C146: FALCONI VASQUEZ SYLVIA ROSA | D146: 06679492 | E146: TRABAJADOR/A SOCIAL | F146: NOMBRADO | G146: 28 | H146: 4471 | I146: 0 | J146: 0 | K146: 0 | L146: 4471
A147: 143 | B147: 010737 | C147: FARFAN VALENTIN PEDRO | D147: 08555457 | E147: TEC. EN ENFERMERIA I | F147: NOMBRADO | G147: TC | H147: 2109 | I147: 504.38 | J147: 158 | K147: 0 | L147: 2771.38
A148: 144 | B148: 010747 | C148: FERNANDEZ MONTALVO MERCEDES ANGELITA | D148: 80579469 | E148: ENFERMERA/O | F148: NOMBRADO | G148: 10 | H148: 3344 | I148: 0 | J148: 450 | K148: 0 | L148: 3794
A149: 145 | B149: 010411 | C149: FERNANDEZ MORALES FATIMA GRACIELA MAGDA | D149: 08424817 | E149: TECNOLOGO MEDICO | F149: NOMBRADO | G149: 73 | H149: 3900 | I149: 0 | J149: 0 | K149: 0 | L149: 3900
A150: 146 | B150: 010039 | C150: FERNANDEZ YGREDA REGINA NELIDA | D150: 08544654 | E150: ENFERMERA/O | F150: NOMBRADO | G150: 14 | H150: 4471 | I150: 0 | J150: 450 | K150: 0 | L150: 4921
A151: 147 | B151: 010210 | C151: FERRO RODRIGO RODOLFO WILLINGTON | D151: 07230874 | E151: PILOTO DE AMBULANCIA | F151: NOMBRADO | G151: TB | H151: 2127 | I151: 0 | J151: 158 | K151: 0 | L151: 2285
A152: 148 | B152: 010211 | C152: FLORES FUENTES REYNA AUGUSTA | D152: 08095095 | E152: TEC. EN ENFERMERIA II | F152: NOMBRADO | G152: TB | H152: 2127 | I152: 467.71 | J152: 308 | K152: 0 | L152: 2902.71
A153: 149 | B153: 010212 | C153: FLORIAN CHAVEZ FRANCISCA ESTHER | D153: 06158194 | E153: ASIST. EJECUTIVO I | F153: NOMBRADO | G153: TB | H153: 1082.61 | I153: 0 | J153: 0 | K153: 1367.17 | L153: 2449.78
A154: 150 | B154: 010213 | C154: FLORINDEZ VERA MARIA LUISA | D154: 07341193 | E154: TEC. EN ENFERMERIA II | F154: NOMBRADO | G154: TB | H154: 2127 | I154: 0 | J154: 158 | K154: 0 | L154: 2285
A155: 151 | B155: 010836 | C155: FRANCIA PACHECO MARTIN SABINO | D155: 43052579 | E155: ENFERMERA/O | F155: NOMBRADO | G155: 10 | H155: 3344 | I155: 0 | J155: 450 | K155: 0 | L155: 3794
A156: 152 | B156: 010677 | C156: FUENTES GARCES LOURDES HELENA | D156: 06792767 | E156: AUXILIAR ASISTENCIAL | F156: NOMBRADO | G156: AB | H156: 2077 | I156: 520.65 | J156: 158 | K156: 0 | L156: 2755.65
A157: 153 | B157: 010214 | C157: FUENTES RIVERA DORIA MARIA DEL CARM | D157: 07117474 | E157: ESP. ADMINIST. I | F157: NOMBRADO | G157: TA | H157: 1079.53 | I157: 0 | J157: 0 | K157: 3207.17 | L157: 4286.7
A158: 154 | B158: 010215 | C158: GACITUA ARIAS MARIO LEANDRO | D158: 08448104 | E158: TECNICO/A EN LOGISTICA | F158: NOMBRADO | G158: TB | H158: 867.49 | I158: 0 | J158: 0 | K158: 1367.17 | L158: 2234.66
A159: 155 | B159: 010419 | C159: GALARRETA DE LA CRUZ CARMEN ROSA | D159: 08442473 | E159: ENFERMERA/O | F159: NOMBRADO | G159: 14 | H159: 4471 | I159: 0 | J159: 450 | K159: 0 | L159: 4921
A160: 156 | B160: 010216 | C160: GALINDO TAMBO VIRGILIO JESUS | D160: 08018024 | E160: ASIST. PROFESIONAL II | F160: NOMBRADO | G160: PF | H160: 907.46 | I160: 0 | J160: 0 | K160: 1367.17 | L160: 2274.63
A161: 157 | B161: 010219 | C161: GAMARRA ORCCOTOMA LUCIA | D161: 07818045 | E161: TEC. EN NUTRICION II | F161: NOMBRADO | G161: TB | H161: 2127 | I161: 0 | J161: 158 | K161: 0 | L161: 2285
A162: 158 | B162: 010543 | C162: GAMIO VASQUEZ ZOILA VICTORIA | D162: 07199651 | E162: NUTRICIONISTA | F162: NOMBRADO | G162: 28 | H162: 4471 | I162: 0 | J162: 0 | K162: 0 | L162: 4471
A163: 159 | B163: 010563 | C163: GANTO SILVERA ARTURO JESUS | D163: 08357707 | E163: TECNICO/A ASISTENCIAL | F163: NOMBRADO | G163: TE | H163: 2078 | I163: 0 | J163: 158 | K163: 0 | L163: 2236
A164: 160 | B164: 010222 | C164: GARAY DE LA CRUZ SEVERO FILOMENO | D164: 08498501 | E164: ANALISTA FINANCIERO | F164: NOMBRADO | G164: PF | H164: 1059.75 | I164: 0 | J164: 0 | K164: 3207.17 | L164: 4266.92
A165: 161 | B165: 010223 | C165: GARCES TRUJILLO PEPE | D165: 08520394 | E165: ESP. EN LOGISTICA | F165: NOMBRADO | G165: TB | H165: 867.49 | I165: 0 | J165: 0 | K165: 1367.17 | L165: 2234.66
A166: 162 | B166: 010224 | C166: GARCIA ARCE ANITA ROSARIO | D166: 07584924 | E166: ESP. EN ADM.DE REC.HUM. | F166: NOMBRADO | G166: PD | H166: 955.41 | I166: 0 | J166: 0 | K166: 3207.17 | L166: 4162.58
A167: 163 | B167: 010225 | C167: GARCIA CORDOVA MARIA GRETA | D167: 06200017 | E167: TEC. EN ENFERMERIA II | F167: NOMBRADO | G167: TC | H167: 2109 | I167: 0 | J167: 158 | K167: 0 | L167: 2267
A168: 164 | B168: 010226 | C168: GARCIA ESPINOZA MARIA FILOMENA | D168: 06880205 | E168: TEC. EN ENFERMERIA II | F168: NOMBRADO | G168: TC | H168: 2109 | I168: 504.38 | J168: 158 | K168: 0 | L168: 2771.38
A169: 165 | B169: 010797 | C169: GARCIA ORMEÑO EDGAR ABEL | D169: 41654558 | E169: TEC. EN ENFERMERIA I | F169: NOMBRADO | G169: TF | H169: 2068 | I169: 551.94 | J169: 308 | K169: 0 | L169: 2927.94
A170: 166 | B170: 010017 | C170: GARCIA ORMEÑO PATRICIA SARITA | D170: 21505354 | E170: ENFERMERA/O | F170: NOMBRADO | G170: 11 | H170: 3660 | I170: 1380.78 | J170: 450 | K170: 0 | L170: 5490.78
A171: 167 | B171: 010229 | C171: GARCIA VEGA VALENTINA | D171: 06985900 | E171: TEC. EN ENFERMERIA II | F171: NOMBRADO | G171: TB | H171: 2127 | I171: 551.94 | J171: 158 | K171: 0 | L171: 2836.94
A172: 168 | B172: 010040 | C172: GARCIA ZAVALETA MILAGROS DEL PILAR | D172: 07296091 | E172: ENFERMERA/O | F172: NOMBRADO | G172: 14 | H172: 4471 | I172: 1515.66 | J172: 450 | K172: 0 | L172: 6436.66
A173: 169 | B173: 010230 | C173: GAVIDIA NUÑUVERO DORIS LUCIA | D173: 06738495 | E173: ASIST. EJECUTIVO II | F173: NOMBRADO | G173: TB | H173: 1082.61 | I173: 0 | J173: 0 | K173: 1367.17 | L173: 2449.78
A174: 170 | B174: 010231 | C174: GAVILAN VILLANUEVA MARIA CRISTINA | D174: 09038308 | E174: TEC. EN ENFERMERIA II | F174: NOMBRADO | G174: TB | H174: 2127 | I174: 0 | J174: 158 | K174: 0 | L174: 2285
A175: 171 | B175: 010562 | C175: GOMEZ ISIDRO MARIANO | D175: 06234752 | E175: TECNICO/A EN COMUNICACIONE | F175: NOMBRADO | G175: TE | H175: 854 | I175: 0 | J175: 0 | K175: 1367.17 | L175: 2221.17
A176: 172 | B176: 010232 | C176: GOMEZ LOPEZ LIDIA NATIVIDAD | D176: 07203881 | E176: TEC. EN ENFERMERIA II | F176: NOMBRADO | G176: TB | H176: 2127 | I176: 0 | J176: 158 | K176: 0 | L176: 2285
A177: 173 | B177: 010622 | C177: GOMEZ LOPEZ MARIA CRISTINA | D177: 09731431 | E177: TEC. EN ENFERMERIA I | F177: NOMBRADO | G177: TC | H177: 2109 | I177: 551.94 | J177: 158 | K177: 0 | L177: 2818.94
A178: 174 | B178: 010151 | C178: GOMEZ SALAZAR ELIAS PEDRO | D178: 06160348 | E178: PILOTO DE AMBULANCIA | F178: NOMBRADO | G178: TD | H178: 2091 | I178: 0 | J178: 158 | K178: 0 | L178: 2249
A179: 175 | B179: 010739 | C179: GONZALES CARDENAS MARTIN CHRISTIAN | D179: 40544090 | E179: TEC. EN ENFERMERIA I | F179: NOMBRADO | G179: TC | H179: 2109 | I179: 504.38 | J179: 158 | K179: 0 | L179: 2771.38
A180: 176 | B180: 010235 | C180: GONZALES MATEO JOSE FERNANDO | D180: 07176591 | E180: TECNICO/A ASISTENCIAL | F180: NOMBRADO | G180: TB | H180: 2127 | I180: 551.94 | J180: 158 | K180: 0 | L180: 2836.94
A181: 177 | B181: 010236 | C181: GONZALES MINA TERESA | D181: 08037326 | E181: ASIST. ADMINIST. I | F181: NOMBRADO | G181: TC | H181: 855 | I181: 0 | J181: 0 | K181: 3207.17 | L181: 4062.17
A182: 178 | B182: 010041 | C182: GONZALES NUÑEZ BETTY LILIANA | D182: 08650043 | E182: TECNOLOGO MEDICO | F182: NOMBRADO | G182: 75 | H182: 4471 | I182: 0 | J182: 0 | K182: 0 | L182: 4471
A183: 179 | B183: 010678 | C183: GONZALES OJEDA GUSTAVO ALFREDO | D183: 32869734 | E183: AUXILIAR ASISTENCIAL | F183: NOMBRADO | G183: AD | H183: 2059 | I183: 416.52 | J183: 158 | K183: 0 | L183: 2633.52
A184: 180 | B184: 010237 | C184: GONZALES VASQUEZ MARTIN | D184: 06057067 | E184: TEC. EN ENFERMERIA II | F184: NOMBRADO | G184: TB | H184: 2127 | I184: 0 | J184: 158 | K184: 0 | L184: 2285
A185: 181 | B185: 010238 | C185: GONZALES YANTAS VICTOR RAUL | D185: 06215838 | E185: TECNICO/A ADMINIST. I | F185: NOMBRADO | G185: TB | H185: 895.27 | I185: 0 | J185: 0 | K185: 1367.17 | L185: 2262.44
A186: 182 | B186: 010239 | C186: GUERRA RODRIGUEZ ANGEL SALOMON | D186: 09202831 | E186: ESP. EN LOGISTICA | F186: NOMBRADO | G186: TB | H186: 898.27 | I186: 0 | J186: 0 | K186: 1367.17 | L186: 2265.44
A187: 183 | B187: 010240 | C187: GUEVARA CANALES LUZ MARINA | D187: 07368934 | E187: ASIST. EJECUTIVO II | F187: NOMBRADO | G187: TB | H187: 921.03 | I187: 0 | J187: 0 | K187: 1367.17 | L187: 2288.2
A188: 184 | B188: 010845 | C188: GUEVARA PEREZ CINDY ARELIZ | D188: 44607290 | E188: ENFERMERA/O | F188: NOMBRADO | G188: 10 | H188: 3344 | I188: 0 | J188: 450 | K188: 0 | L188: 3794
A189: 185 | B189: 010420 | C189: GUIMAS REYNA LUIS BERNARDO GUILLERMO | D189: 08771800 | E189: MEDICO I | F189: NOMBRADO | G189: 19 | H189: 7266 | I189: 0 | J189: 900 | K189: 0 | L189: 8166
A190: 186 | B190: 010045 | C190: GUPIO MENDOZA GLORIA HAYDEE | D190: 08583139 | E190: ENFERMERA/O | F190: NOMBRADO | G190: 14 | H190: 4471 | I190: 0 | J190: 450 | K190: 0 | L190: 4921
A191: 187 | B191: 010242 | C191: HENOSTROZA MINAYA EDMUNDO FIDENCIO | D191: 10618259 | E191: TECNICO/A ASISTENCIAL | F191: NOMBRADO | G191: TA | H191: 2145 | I191: 0 | J191: 158 | K191: 0 | L191: 2303
A192: 188 | B192: 010355 | C192: HERNANDEZ HUAMAN RUTH FELICITA | D192: 10752832 | E192: ENFERMERA/O | F192: NOMBRADO | G192: 10 | H192: 3344 | I192: 1344 | J192: 450 | K192: 0 | L192: 5138
A193: 189 | B193: 010004 | C193: HERNANDEZ QUIROZ JIMMY | D193: 41332455 | E193: JEFE/A DE OFICINA | F193: NOMBRADO | G193: C3 | H193: 1124.3 | I193: 0 | J193: 0 | K193: 3707.17 | L193: 4831.47
A194: 190 | B194: 010244 | C194: HERRERA HUAMAN ELISA | D194: 06048254 | E194: TEC. EN ENFERMERIA II | F194: NOMBRADO | G194: TB | H194: 2129 | I194: 551.94 | J194: 308 | K194: 0 | L194: 2988.94
A195: 191 | B195: 010847 | C195: HERRERA LOPEZ VANESSA EVELYN | D195: 41555474 | E195: MEDICO | F195: NOMBRADO | G195: 15 | H195: 5532 | I195: 0 | J195: 900 | K195: 0 | L195: 6432
A196: 192 | B196: 010246 | C196: HUAMAN AURIS ABEL MARINO | D196: 09199043 | E196: ESP. EN PLANEAMIENTO III | F196: NOMBRADO | G196: PF | H196: 1376.46 | I196: 0 | J196: 0 | K196: 1367.17 | L196: 2743.63
A197: 193 | B197: 010048 | C197: HUAMAN PINEDA JULIO RAUL | D197: 21447640 | E197: MEDICO | F197: NOMBRADO | G197: 19 | H197: 7266 | I197: 0 | J197: 900 | K197: 0 | L197: =SUM(H197:K197) -> 8166
A198: 194 | B198: 010049 | C198: HUANCA ALARCON LUDIVINA | D198: 07079682 | E198: TRABAJADOR/A SOCIAL | F198: NOMBRADO | G198: 28 | H198: 4471 | I198: 0 | J198: 0 | K198: 0 | L198: 4471
A199: 195 | B199: 010600 | C199: HUARACHI COAQUIRA LUIS FERGUSON | D199: 47531274 | E199: JEFE/A DE OFICINA | F199: NOMBRADO | G199: C3 | H199: 1124.3 | I199: 0 | J199: 0 | K199: 3707.17 | L199: 4831.47
A200: =+A199+1 -> 196 | B200: 010247 | C200: HUAYTA FALCON FANNY LOURDES | D200: 07564369 | E200: TRABAJADOR/A SOCIAL | F200: NOMBRADO | G200: 26 | H200: 3900 | I200: 0 | J200: 0 | K200: 0 | L200: 3900
... 382 more rows

Sheet CAS
A2: DECLARACION JURADA DE EJECUCION DE PAGO -CONTRATO ADMINISTRATIVO SERVICIOS - CAS JUNIO 2021
A3: PLIEGO : 11 MINSA
A4: UNIDAD EJECUTORA : 005-INSTITUTO NACIONAL DE SALUD MENTAL"HONORIO DELGADO-HIDEYO NOGUCHI"
A6: Nº | B6: Nº PLAZA | C6: APELLIDOS Y NOMBRES | D6: DNI | E6: ACTIVIDAD | F6: FUENTE FINANCIAMIENTO | G6: FECHA DE INGRESO | H6: INGRESO | I6: CUOTA PATRONAL
A7: 1 | B7: 000222 | C7: ACOSTA TRUJILLO CARLOS GABRIEL | D7: 46016141 | E7: TECNICO EN ENFERMERIA | F7: R.O. | G7: 2021-05-13 | H7: 1700 | I7: 153
A8: =A7+1 -> 2 | B8: 000003 | C8: ALBARRACIN TORRES CHRISTIAN FERNANDO | D8: 40355947 | E8: OPERADOR DE MAQUINA INDUSTRIAL | F8: R.O. | G8: 2018-12-31 | H8: 1500 | I8: 135
A9: =A8+1 -> 3 | B9: 000027 | C9: ALBINAGORTA ARIZA PAOLA | D9: 41288399 | E9: MEDICO PSIQUIATRA | F9: R.O. | G9: 2018-01-01 | H9: 6500 | I9: 217.8
A10: 4 | B10: 000231 | C10: ALIAGA TINOCO STEPHANIE | D10: 43742528 | E10: MEDICO | F10: R.O. | G10: 2020-10-01 | H10: 6500 | I10: 217.8
A11: 5 | B11: 000021 | C11: ALVARO SAAVEDRA KARI MARCIA | D11: 46542197 | E11: PSICOLOGO(A) | F11: R.O. | G11: 2017-09-01 | H11: 2600 | I11: 217.8
A12: 6 | B12: 000067 | C12: ANGULO JUNCO RAUL SANTOS | D12: 09830313 | E12: MEDICO | F12: R.O. | G12: 2020-10-01 | H12: 6500 | I12: 217.8
A13: 7 | B13: 000066 | C13: ARENAS BUSTINZA MARKO CHRIS | D13: 40276111 | E13: PSICOLOGO(A) | F13: R.O. | G13: 2018-12-31 | H13: 2600 | I13: 217.8
A14: 8 | B14: 000139 | C14: AREVALO ASTUDILLO IVAN ANGEL | D14: 09619983 | E14: SOPORTE TECNICO EN INFORMATICA | F14: R.O. | G14: 2015-10-01 | H14: 5200 | I14: 217.8
A15: 9 | B15: 000153 | C15: ASENCIOS BAZAN ROSANA FLORMIRA | D15: 72392500 | E15: TECNICO EN NUTRICION | F15: R.O. | G15: 2015-04-06 | H15: 1500 | I15: 135
A16: 10 | B16: 000072 | C16: ASTOCONDOR BETETA LORENA ARACELI | D16: 47547523 | E16: TECNICO EN ENFERMERIA | F16: R.O. | G16: 2020-04-01 | H16: 1700 | I16: 153
A17: 11 | B17: 000178 | C17: AURAZO CASTAÑEDA MARIA LUISA | D17: 72569470 | E17: TECNICO EN ENFERMERIA | F17: R.O. | G17: 2015-08-12 | H17: 1700 | I17: 153
A18: 12 | B18: 000157 | C18: BAÑEZ PALACIOS IRINA MARUJA | D18: 46451237 | E18: TECNICO EN ENFERMERIA | F18: R.O. | G18: 2020-04-01 | H18: 1700 | I18: 153
A19: 13 | B19: 000229 | C19: BARRANTES MORALES ANGELITH ROCIO | D19: 46740571 | E19: MEDICO | F19: R.O. | G19: 2020-06-01 | H19: 6500 | I19: 217.8
A20: 14 | B20: 000158 | C20: BARRIENTOS DEL PINO INGRID MARLENE | D20: 71428210 | E20: TECNICO EN FARMACIA | F20: R.O. | G20: 2020-04-01 | H20: 1700 | I20: 153
A21: 15 | B21: 000234 | C21: BERNALES APOLINARIO YRMA | D21: 43435912 | E21: QUIMICO FARMACEUTICO | F21: R.O. | G21: 2020-07-01 | H21: 2700 | I21: 217.8
A22: 16 | B22: 000010 | C22: CABANILLAS SUAREZ LENIN | D22: 43157360 | E22: TECNICO EN FARMACIA | F22: R.D.R. | G22: 2018-12-31 | H22: 1700 | I22: 153
A23: 17 | B23: 000040 | C23: CALDAS VEGA MEIDE JAIDE | D23: 41368033 | E23: TECNICO EN ENFERMERIA | F23: R.O. | G23: 2018-12-31 | H23: 1700 | I23: 153
A24: 18 | B24: 000031 | C24: CAMPOS GASTELU MARIA ESTELA | D24: 70440577 | E24: ENFERMERA(O) | F24: R.O. | G24: 2018-08-16 | H24: 2600 | I24: 217.8
A25: 19 | B25: 000028 | C25: CANALES DIAZ KARINA BEATRIZ | D25: 15742762 | E25: TECNOLOGO MEDICO | F25: R.O. | G25: 2021-06-01 | H25: 630 | I25: 83.7
A26: 20 | B26: 000063 | C26: CANCHIS CARUAJULCA JOSE ORLANDO | D26: 43729310 | E26: PSICOLOGO(A) | F26: R.O. | G26: 2018-12-31 | H26: 2600 | I26: 217.8
A27: 21 | B27: 000170 | C27: CARBAJAL MONTESINOS SARA | D27: 42874441 | E27: MEDICO PSIQUIATRA | F27: R.O. | G27: 2019-01-01 | H27: 6500 | I27: 217.8
A28: 22 | B28: 000015 | C28: CARHUATANTA UGAZ JHONNY | D28: 16789846 | E28: TECNICO EN NUTRICION | F28: R.O. | G28: 2017-12-20 | H28: 1500 | I28: 135
A29: 23 | B29: 000197 | C29: CARRANZA PERALTA JOSE ELIAS | D29: 45795237 | E29: TECNICO EN ENFERMERIA | F29: R.O. | G29: 2020-04-01 | H29: 1700 | I29: 153
A30: 24 | B30: 000030 | C30: CHAVEZ SALDAÑA SHEYLA JOANA | D30: 46595343 | E30: TECNICO EN ENFERMERIA | F30: R.O. | G30: 2015-01-23 | H30: 1700 | I30: 153
A31: 25 | B31: 000044 | C31: CLAPES VARGAS CARMEN DEL ROSARIO | D31: 46458231 | E31: ENFERMERA(O) | F31: R.O. | G31: 2017-12-29 | H31: 2600 | I31: 217.8
A32: 26 | B32: 000177 | C32: CORDOVA COLUGNA CARLA FABIOLA | D32: 09934528 | E32: MEDICO PSIQUIATRA | F32: R.O. | G32: 2015-08-03 | H32: 4080 | I32: 0
A33: 27 | B33: 000232 | C33: CUBAS SEGURA GLADYS MARIA | D33: 08535216 | E33: QUIMICO FARMACEUTICO | F33: R.D.R. | G33: 2021-01-01 | H33: 2700 | I33: 217.8
A34: 28 | B34: 000113 | C34: DAMIAN HUAYNALAYA VANESSA REYDA | D34: 43102031 | E34: ENFERMERA(O) | F34: R.O. | G34: 2015-03-26 | H34: 2600 | I34: 217.8
A35: 29 | B35: 000004 | C35: DEL CARPIO REYMER VICTOR MANUEL | D35: 44373790 | E35: MEDICO PSIQUIATRA | F35: R.O. | G35: 2018-12-31 | H35: 6500 | I35: 217.8
A36: 30 | B36: 000033 | C36: DUQUE QUINTANA MABEL | D36: 00257304 | E36: PSICOLOGO(A) | F36: R.O. | G36: 2018-12-31 | H36: 2600 | I36: 217.8
A37: 31 | B37: 000185 | C37: DURAN MAMANI ELIZABETH JACKELINE | D37: 76731950 | E37: TECNICO EN LABORATORIO | F37: R.O. | G37: 2021-05-17 | H37: 1700 | I37: 153
A38: 32 | B38: 000026 | C38: ECHAJAYA SIFUENTES MEKCIO JORGE | D38: 45581438 | E38: TECNICO EN FARMACIA | F38: R.O. | G38: 2018-12-31 | H38: 1700 | I38: 153
A39: 33 | B39: 000200 | C39: ESTRADA FLORINDEZ LUZ MARINA | D39: 44535987 | E39: TECNICO EN ENFERMERIA | F39: R.O. | G39: 2020-04-01 | H39: 1700 | I39: 153
A40: 34 | B40: 000041 | C40: FIGUEROA DE LA CRUZ ROXANA PILAR | D40: 09615413 | E40: PSICOLOGO(A) | F40: R.O. | G40: 2015-03-26 | H40: 2600 | I40: 217.8
A41: 35 | B41: 000059 | C41: FIGUEROA REYNOSO EDITH GUISELLA | D41: 44720962 | E41: MEDICO PSIQUIATRA | F41: R.O. | G41: 2018-12-31 | H41: 6500 | I41: 217.8
A42: 36 | B42: 000034 | C42: GALLARDO FLORES OFELIA PAULA | D42: 07299584 | E42: ASISTENTE SOCIAL | F42: R.O. | G42: 2007-10-16 | H42: 2600 | I42: 217.8
A43: 37 | B43: 000068 | C43: GALLO QUISPE MARITZA RUTH | D43: 09893710 | E43: AUXILIAR ADMINISTRATIVO | F43: R.O. | G43: 2015-01-05 | H43: 1500 | I43: 135
A44: 38 | B44: 000061 | C44: GARIBAY LEON GARY GEEB | D44: 44369365 | E44: DESARROLLADOR DE APLICACIONES | F44: R.O. | G44: 2015-04-01 | H44: 2500 | I44: 217.8
A45: 39 | B45: 000193 | C45: GARROTE TAHUA LILIAN MERCEDES | D45: 25846409 | E45: TECNOLOGO MEDICO | F45: R.O. | G45: 2018-12-31 | H45: 2600 | I45: 217.8
A46: 40 | B46: 000169 | C46: GIRAO GUTIERREZ CRISTHIAN ALBERTO | D46: 42096876 | E46: TECNICO EN ENFERMERIA | F46: R.O. | G46: 2015-03-26 | H46: 1700 | I46: 153
A47: 41 | B47: 000008 | C47: GOMEZ AQUINO LIZBETH ANA | D47: 40002711 | E47: TECNICO EN ENFERMERIA | F47: R.O. | G47: 2017-12-29 | H47: 1700 | I47: 153
A48: 42 | B48: 000182 | C48: GOMEZ PARODI MANUEL ELIAS | D48: 45047061 | E48: ENFERMERA(O) | F48: R.O. | G48: 2020-04-01 | H48: 2700 | I48: 217.8
A49: 43 | B49: 000064 | C49: GONZALES FERNANDEZ ROCIO | D49: 45974500 | E49: DIGITADOR(A) | F49: R.O. | G49: 2018-08-24 | H49: 1500 | I49: 135
A50: 44 | B50: 000022 | C50: GONZALES LOZANO GUILLERMO | D50: 70425237 | E50: DIGITADOR(A) | F50: R.O. | G50: 2012-05-14 | H50: 1500 | I50: 135
A51: 45 | B51: 000082 | C51: GOZME DE LA CRUZ RUTH JUDITH | D51: 70110694 | E51: ASISTENTE SOCIAL | F51: R.O. | G51: 2020-04-01 | H51: 2700 | I51: 217.8
A52: 46 | B52: 000201 | C52: GUTIERREZ CARDENAS RENZO | D52: 44385818 | E52: NUTRICIONISTA | F52: R.O. | G52: 2020-04-01 | H52: 2700 | I52: 217.8
A53: 47 | B53: 000089 | C53: GUTIERREZ VILLA LUZ MIRELLA | D53: 42840331 | E53: ESPECIALISTA EN ESTADISTICA DE | F53: R.O. | G53: 2018-12-31 | H53: 4000 | I53: 217.8
A54: 48 | B54: 000164 | C54: GUTIERREZ YNDALECIO LUCIANA ALEJANDRA | D54: 45966399 | E54: TECNICO EN FARMACIA | F54: R.O. | G54: 2020-04-01 | H54: 1700 | I54: 153
A55: 49 | B55: 000195 | C55: HERRERA CANCHARI CYNTHIA | D55: 70045340 | E55: TECNICO EN FARMACIA | F55: R.O. | G55: 2018-12-31 | H55: 1700 | I55: 153
A56: 50 | B56: 000145 | C56: HERRERA HUAMAN ROGER | D56: 10432200 | E56: VIGILANTE | F56: R.O. | G56: 2017-12-19 | H56: 1500 | I56: 135
A57: 51 | B57: 000086 | C57: HUAMAN FABIAN PATRICIA DEL ROSARIO | D57: 42380421 | E57: TECNICO EN ENFERMERIA | F57: R.O. | G57: 2020-04-01 | H57: 1700 | I57: 153
A58: 52 | B58: 000094 | C58: HUAMAN MUNARRIZ SILVIA | D58: 42075287 | E58: PROFESIONAL EN EDUCACION | F58: R.O. | G58: 2018-12-31 | H58: 2600 | I58: 217.8
A59: 53 | B59: 000090 | C59: ISIQUE GARCIA KINKEL JHONNATAN | D59: 48037756 | E59: TECNICO EN ENFERMERIA | F59: R.O. | G59: 2020-04-01 | H59: 1700 | I59: 153
A60: 54 | B60: 000152 | C60: JIMENEZ QUINCHO JULIO CESAR | D60: 70023847 | E60: TECNICO EN ENFERMERIA | F60: R.O. | G60: 2015-03-13 | H60: 1700 | I60: 153
A61: 55 | B61: 000077 | C61: JIMENEZ RABANELLI JOSE ANTONIO | D61: 40938345 | E61: MEDICO PSIQUIATRA | F61: R.O. | G61: 2018-12-31 | H61: 6500 | I61: 217.8
A62: 56 | B62: 000017 | C62: JUAREZ CHAVEZ ELVA ROSOMERI | D62: 10745332 | E62: DIGITADOR(A) | F62: R.O. | G62: 2015-01-23 | H62: 1500 | I62: 135
A63: 57 | B63: 000227 | C63: LEON CHAVEZ MERCEDES | D63: 07153666 | E63: TECNICO EN NUTRICION | F63: R.O. | G63: 2020-04-13 | H63: 1700 | I63: 153
A64: 58 | B64: 000166 | C64: LEON VELA MARIO ALEXANDER | D64: 44398667 | E64: DIGITADOR(A) | F64: R.O. | G64: 2015-04-01 | H64: 1500 | I64: 135
A65: 59 | B65: 000006 | C65: LIZANO ABAD CLAUDIA PIERINA | D65: 47787390 | E65: DIGITADOR(A) | F65: R.O. | G65: 2020-01-01 | H65: 1500 | I65: 135
A66: 60 | B66: 000080 | C66: LLACTARIMAY SANCHEZ EDITH | D66: 70439956 | E66: ENFERMERA(O) | F66: R.O. | G66: 2017-09-01 | H66: 2600 | I66: 217.8
A67: 61 | B67: 000228 | C67: LOMBARDI GIRON MADELEY YANINA | D67: 16175892 | E67: TECNICO EN NUTRICION | F67: R.O. | G67: 2020-04-07 | H67: 1700 | I67: 153
A68: 62 | B68: 000101 | C68: LOPEZ TOVAR ELIZABETH | D68: 70432505 | E68: NUTRICIONISTA | F68: R.O. | G68: 2017-12-19 | H68: 2600 | I68: 217.8
A69: 63 | B69: 000046 | C69: LOZADA MORALES MARIELA PATRICIA | D69: 10459510 | E69: DISEÑADOR GRAFICO | F69: R.O. | G69: 2004-12-16 | H69: 1700 | I69: 153
A70: 64 | B70: 000215 | C70: LUNA TUANAMA ANA LUISA | D70: 44791562 | E70: TECNICO EN FARMACIA | F70: R.O. | G70: 2020-04-01 | H70: 1700 | I70: 153
A71: 65 | B71: 000206 | C71: MACEDO ORREGO LUIS ENRIQUE | D71: 44661310 | E71: MEDICO PSIQUIATRA | F71: R.O. | G71: 2021-01-01 | H71: 6500 | I71: 217.8
A72: 66 | B72: 000050 | C72: MACHADO PAREDES JHONATAN CRISTIAN | D72: 44947036 | E72: TECNICO EN ENFERMERIA | F72: R.O. | G72: 2017-12-29 | H72: 1700 | I72: 153
A73: =A72+1 -> 67 | B73: 000168 | C73: MARTINEZ MONTENEGRO MANUEL YOVER | D73: 80629039 | E73: TECNICO EN NUTRICION | F73: R.O. | G73: 2019-10-01 | H73: 1500 | I73: 135
A74: 68 | B74: 000084 | C74: MAVILA CASTILLO GUILLERMO OCTAVIO | D74: 08031576 | E74: AUDITOR(A) | F74: R.O. | G74: 2013-03-14 | H74: 4000 | I74: 217.8
A75: 69 | B75: 000198 | C75: MEDINA PENADO HERBERT ALEJANDRO | D75: 08166396 | E75: TECNICO EN ENFERMERIA | F75: R.O. | G75: 2018-12-31 | H75: 1700 | I75: 153
A76: 70 | B76: 000165 | C76: MENDOZA CASTRO SANDRA | D76: 42334633 | E76: PSICOLOGO(A) | F76: R.O. | G76: 2015-03-26 | H76: 2600 | I76: 217.8
A77: 71 | B77: 000070 | C77: MITMA GARCIA LILIAN KATHERINE | D77: 45586557 | E77: TECNICO EN ENFERMERIA | F77: R.O. | G77: 2015-01-23 | H77: 1700 | I77: 153
A78: 72 | B78: 000216 | C78: MONTES CHIPANA JOSE MIGUEL | D78: 46188889 | E78: TECNICO EN ENFERMERIA | F78: R.O. | G78: 2020-04-01 | H78: 1700 | I78: 153
A79: 73 | B79: 000160 | C79: NAPANGA RIVAS JOANA NATALY | D79: 46594797 | E79: PSICOLOGO(A) | F79: R.O. | G79: 2019-10-01 | H79: 2600 | I79: 217.8
A80: 74 | B80: 000226 | C80: OLANO PALACIN VIOLETA SARITA | D80: 45679988 | E80: ENFERMERA(O) | F80: R.O. | G80: 2020-04-06 | H80: 2700 | I80: 217.8
A81: 75 | B81: 000224 | C81: ORTEGA OLIVAS STHEPHANY MIRZA | D81: 47784285 | E81: ENFERMERA(O) | F81: R.O. | G81: 2021-05-13 | H81: 2600 | I81: 217.8
A82: 76 | B82: 000051 | C82: ORTIZ SANCHEZ FLOR DE MARIA | D82: 10138472 | E82: DIGITADOR(A) | F82: R.O. | G82: 2004-08-25 | H82: 1500 | I82: 135
A83: 77 | B83: 000042 | C83: PACCURI ALMANZA DIANA JIULLIANA | D83: 43622031 | E83: QUIMICO FARMACEUTICO | F83: R.D.R. | G83: 2020-04-01 | H83: 2700 | I83: 217.8
A84: 78 | B84: 000233 | C84: PALOMINO CRUZ ALICIA CONSUELO SOLEDAD | D84: 46797353 | E84: MEDICO PSIQUIATRA | F84: R.O. | G84: 2021-06-01 | H84: 6500 | I84: 217.8
A85: 79 | B85: 000097 | C85: PALOMINO ORE CANDY | D85: 44041900 | E85: MEDICO PSIQUIATRA | F85: R.O. | G85: 2019-10-01 | H85: 6500 | I85: 217.8
A86: 80 | B86: 000217 | C86: PAREDES ECHEVERRIA LUIS ALFREDO | D86: 41264696 | E86: TECNICO EN ENFERMERIA | F86: R.O. | G86: 2020-04-01 | H86: 1700 | I86: 153
A87: 81 | B87: 000107 | C87: PAREDES URQUIZO JORDAN LOANI | D87: 46626286 | E87: PSICOLOGO(A) | F87: R.O. | G87: 2018-12-31 | H87: 2600 | I87: 217.8
A88: 82 | B88: 000053 | C88: PEREZ DAVILA SHELLA HEIDI | D88: 10624576 | E88: DIGITADOR(A) | F88: R.O. | G88: 2004-08-23 | H88: 1500 | I88: 135
A89: 83 | B89: 000218 | C89: PESANTES TOMAPASCA ELIO | D89: 44110109 | E89: TECNICO EN ENFERMERIA | F89: R.O. | G89: 2020-04-01 | H89: 1700 | I89: 153
A90: 84 | B90: 000181 | C90: PINEDA GOMEZ LUIS ANGEL | D90: 47905305 | E90: ESPECIALISTA EN INFORMATICA | F90: R.O. | G90: 2018-12-31 | H90: 3400 | I90: 217.8
A91: 85 | B91: 000055 | C91: POZO LEVANO JESSICA LOURDES | D91: 10586463 | E91: PSICOLOGO(A) | F91: R.O. | G91: 2004-08-23 | H91: 2600 | I91: 217.8
A92: 86 | B92: 000057 | C92: PUCLLA SIHUA ANA MARIA | D92: 43578005 | E92: TECNICO EN ENFERMERIA | F92: R.O. | G92: 2017-12-29 | H92: 1700 | I92: 153
A93: 87 | B93: 000062 | C93: RAMIREZ FIGUEROA ROSA MILAGROS | D93: 15996748 | E93: DIGITADOR(A) | F93: R.O. | G93: 2012-02-06 | H93: 1700 | I93: 153
A94: 88 | B94: 000220 | C94: RAMOS GUEVARA MARIO | D94: 10146232 | E94: TECNICO EN ENFERMERIA | F94: R.O. | G94: 2020-04-01 | H94: 1700 | I94: 153
A95: 89 | B95: 000183 | C95: RIVERA ENCINAS MARIA TERESA | D95: 44360320 | E95: MEDICO PSIQUIATRA | F95: R.O. | G95: 2018-12-31 | H95: 6500 | I95: 217.8
A96: 90 | B96: 000069 | C96: RODRIGUEZ ORE JULIO ALBERTO | D96: 40523216 | E96: TECNOLOGO MEDICO | F96: R.O. | G96: 2015-07-01 | H96: 2600 | I96: 217.8
A97: 91 | B97: 000133 | C97: ROJAS MEDINA JESUS | D97: 07173031 | E97: TECNICO EN IMPRESIONES | F97: R.O. | G97: 2013-09-05 | H97: 1500 | I97: 135
A98: 92 | B98: 000111 | C98: ROJAS ROJAS IRA GALIA | D98: 40656893 | E98: MEDICO PSIQUIATRA | F98: R.O. | G98: 2015-08-03 | H98: 6500 | I98: 217.8
A99: 93 | B99: 000221 | C99: SALAZAR GOMEZ JANET NANCY | D99: 41042705 | E99: TECNICO EN ENFERMERIA | F99: R.O. | G99: 2020-04-01 | H99: 1700 | I99: 153
A100: 94 | B100: 000187 | C100: SALAZAR GOMEZ ROSALIA | D100: 71032664 | E100: TECNICO EN ENFERMERIA | F100: R.O. | G100: 2018-12-31 | H100: 1700 | I100: 153
A101: 95 | B101: 000103 | C101: SALAZAR OLIVARES HERON ARSENIO | D101: 06205988 | E101: ESPECIALISTA ADMINISTRATIVO | F101: R.O. | G101: 2010-06-17 | H101: 3500 | I101: 217.8
A102: 96 | B102: 000088 | C102: SALAZAR ROMERO ALEXANDRA MELISSA | D102: 44767315 | E102: TECNICO EN ENFERMERIA | F102: R.O. | G102: 2015-01-23 | H102: 1700 | I102: 153
A103: 97 | B103: 000186 | C103: SALAZAR YAMAMOTO JORGE | D103: 25814164 | E103: TECNICO EN FARMACIA | F103: R.O. | G103: 2018-12-31 | H103: 1700 | I103: 153
A104: 98 | B104: 000081 | C104: SANCHEZ REYES KARINA ELIZABETH | D104: 42503574 | E104: QUIMICO FARMACEUTICO | F104: R.O. | G104: 2017-12-29 | H104: 2600 | I104: 217.8
A105: 99 | B105: 000180 | C105: SANTILLAN TUANAMA MARLON FERNANDO | D105: 70096252 | E105: TECNICO EN ENFERMERIA | F105: R.O. | G105: 2021-01-01 | H105: 1500 | I105: 135
A106: 100 | B106: 000159 | C106: SANTOS RAMOS MERYHAN | D106: 43225147 | E106: TECNICO EN ENFERMERIA | F106: R.O. | G106: 2015-03-26 | H106: 1700 | I106: 153
A107: 101 | B107: 000176 | C107: TADDEY MANDAMIENTO JENNY KARINA | D107: 43812656 | E107: MEDICO PSIQUIATRA | F107: R.O. | G107: 2017-12-21 | H107: 6500 | I107: 217.8
A108: 102 | B108: 000025 | C108: TORREJON ESPEJO AILEEN ANGELICA SOFIA | D108: 42466373 | E108: MEDICO PSIQUIATRA | F108: R.O. | G108: 2015-08-03 | H108: 6500 | I108: 217.8
A109: 103 | B109: 000189 | C109: TORRES RENGIFO YAKIMA | D109: 45016827 | E109: BIOLOGO(A) | F109: R.O. | G109: 2018-12-31 | H109: 2600 | I109: 217.8
A110: 104 | B110: 000108 | C110: VALLES RIOS DE TUANAMA NELLY | D110: 00838682 | E110: ASISTENTE DE COMUNICACIONES | F110: R.O. | G110: 2017-12-19 | H110: 1700 | I110: 153
A111: 105 | B111: 000074 | C111: VALVERDE CHAUCA WILFREDO ROLANDO | D111: 09612467 | E111: TECNICO EN NUTRICION | F111: R.O. | G111: 2017-12-29 | H111: 1500 | I111: 135.3
A112: 106 | B112: 000172 | C112: VARGAS ROMANI JOHN NESTOR | D112: 42415811 | E112: TECNOLOGO MEDICO | F112: R.O. | G112: 2015-04-14 | H112: 2600 | I112: 217.8
A113: 107 | B113: 000202 | C113: VARGAS ZEGOVIA WINET ELDER | D113: 42391000 | E113: MEDICO PSIQUIATRA | F113: R.O. | G113: 2019-01-01 | H113: 6500 | I113: 217.8
A114: 108 | B114: 000071 | C114: VARILLAS FERNANDEZ DIEGO SANTIAGO | D114: 77138855 | E114: DIGITADOR(A) | F114: R.O. | G114: 2015-01-23 | H114: 1500 | I114: 135
A115: 109 | B115: 000223 | C115: VASQUEZ CONDOR HIMLER JUNIOR | D115: 45235378 | E115: TECNICO EN ENFERMERIA | F115: R.O. | G115: 2020-04-01 | H115: 1700 | I115: 153
A116: 110 | B116: 000225 | C116: VASQUEZ JARA NIDIA IRENE | D116: 42301305 | E116: MEDICO | F116: R.O. | G116: 2020-04-01 | H116: 6500 | I116: 217.8
A117: 111 | B117: 000020 | C117: VERA NAVARRETE MAGDA JULIA | D117: 41873370 | E117: PSICOLOGO(A) | F117: R.O. | G117: 2018-08-16 | H117: 2600 | I117: 217.8
A118: 112 | B118: 000105 | C118: VIA VALENZUELA HERMANN JAMILO | D118: 44742658 | E118: TECNICO EN ENFERMERIA | F118: R.O. | G118: 2015-01-23 | H118: 1700 | I118: 153
A119: 113 | B119: 000199 | C119: VILLANUEVA ALCANTARA JUAN CARLOS | D119: 44879814 | E119: ENFERMERA(O) | F119: R.O. | G119: 2019-01-01 | H119: 2600 | I119: 217.8
A120: 114 | B120: 000191 | C120: VIVAR MESIAS MILVIA MILAGROS | D120: 08559666 | E120: ASISTENTE SOCIAL | G120: 2018-12-31 | H120: 2600 | I120: 217.8
A121: TOTAL | H121: =SUM(H7:H120) -> 315210 | I121: =SUM(I7:I120) -> 20478
B122: JVM/BVR/rcc.
H123: 03 de setiembre 2021

Sheet Pensiones
B1: DECLARACION JURADA DE EJECUCION DE PAGO PLANILLA DE PENSIONISTAS JUNIO 2021
A2: PLIEGO : 11- MINSA
A3: UNIDAD EJECUTORA : 005-INSTITUTO NACIONAL DE SALUD MENTAL"HONORIO DELGADO-HIDEYO NOGUCHI"
A5: Nº | B5: Nº PLAZA | C5: APELLIDOS Y NOMBRES | D5: DNI | E5: CARGO | F5: NIVEL | G5: CONDICION | H5: PENSIONES
A6: 1 | B6: 010445 | C6: AGUILAR ZEGARRA CARLOS GUILLERMO | D6: 07721104 | E6: MEDICO PSIQUIATRA | F6: 17 | G6: C | H6: 1953.29
A7: =A6+1 -> 2 | B7: 010849 | C7: ALLENDE PALOMINO TEOFILA | D7: 09012487 | E7: OPERAD. EQUIPO MEDICO I | F7: TA | G7: V | H7: 969
A8: =A7+1 -> 3 | B8: 010582 | C8: APOLAYA INGUNZA VDA. DE CANO INES ISABEL | D8: 07243214 | E8: OFICINISTA I | F8: NRR2 | G8: V | H8: 184.74
A9: 4 | B9: 010449 | C9: ARGANDOÑA FLORES MARIA JESUS | D9: 08421818 | E9: ASIST. SOCIAL | F9: 25 | G9: C | H9: 1087.96
A10: 5 | B10: 010451 | C10: ASENCIOS PANTOJA JONAS | D10: 08448033 | E10: ELECTRICISTA III | F10: TA | G10: C | H10: 1280.58
A11: 6 | B11: 010452 | C11: AVALOS YACTAYO JAIME LEON | D11: 08180243 | E11: ESP. ADMINIST. I | F11: PD | G11: C | H11: 919.65
A12: 7 | B12: 010453 | C12: AVELINO TOMAS MARIA BILMA | D12: 06127450 | E12: TECNOLOGO MEDICO | F12: 72 | G12: C | H12: 1063.2
A13: 8 | B13: 010455 | C13: BALDEON CHACON DE UGARTE AMANDA | D13: 10162240 | E13: TEC. EN ENFERMERIA II | F13: TA | G13: C | H13: 1245.58
A14: 9 | B14: 010549 | C14: BECERRA MEDINA DE PUPPI LUCY TANI | D14: 07733851 | E14: ENFERMERA/O | F14: 12 | G14: C | H14: 1027.37
A15: 10 | B15: 010458 | C15: CABEZA NORIEGA JUANA JUDITH | D15: 10060118 | E15: MEDICO NEUROLOGO | F15: 19 | G15: C | H15: 2977.34
A16: 11 | B16: 010459 | C16: CABRERA ORELLANA RODRIGO A | D16: 07412661 | E16: OPERAD. EQ.DE IMPRENTA I | F16: TB | G16: C | H16: 1188.75
A17: 12 | B17: 010494 | C17: CORDOVA VELASQUEZ VDA DE MORY ELENA | D17: 08029280 | E17: SUP.DE CONSERV.Y SERV.I | F17: TB | G17: V | H17: 935.96
A18: 13 | B18: 010468 | C18: CUEVA MOTTA LOURDES RUTH | D18: 06231827 | E18: NUTRICIONISTA | F18: 27 | G18: C | H18: 1087.4
A19: 14 | B19: 010525 | C19: DAVILA VILLEGAS VDA DE ROSALES SENOBIA REBECA | D19: 08465139 | E19: TECNICO/A EN LOGISTICA | F19: TA | G19: V | H19: 766.52
A20: 15 | B20: 010469 | C20: DEL AGUILA CAVADAS VDA DE ABANTO MIRLA EMELDA | D20: 08555033 | E20: JEFE/A DE DIVISION | F20: F1 | G20: C | H20: 1533.91
A21: 16 | B21: 010470 | C21: DEL CASTILLO SIFUENTES VDA DE LINARES NELLY | D21: 08120875 | E21: TEC. EN ENFERMERIA II | F21: TA | G21: C | H21: 1224.9
A22: 17 | B22: 010471 | C22: DIAZ ROJAS ITALA | D22: 07156939 | E22: TEC. EN ENFERMERIA II | F22: TA | G22: C | H22: 1245.72
A23: 18 | B23: 010472 | C23: DIAZ TAFUR NIMIA | D23: 08555464 | E23: ENFERMERA/O | F23: 12 | G23: C | H23: 1114.92
A24: 19 | B24: 010473 | C24: ENCISO HINOSTROZA ESPERANZA CARMEN | D24: 08648544 | E24: JEFE/A DE DIVISION | F24: F1 | G24: C | H24: 1322.68
A25: 20 | B25: 010474 | C25: ESPINOZA CACERES JUANA EUFEMIA | D25: 08002742 | E25: TEC. EN ENFERMERIA II | F25: TA | G25: C | H25: 1239.49
A26: 21 | B26: 010464 | C26: FERNANDEZ TORREJON VDA DE TORRES NELLY AURORA | D26: 09921140 | E26: MEDICO | F26: 19 | G26: V | H26: 1621.72
A27: 22 | B27: 010581 | C27: GAMARRA TUPAYACHI JUAN FRANCISCO | D27: 07220056 | E27: JEFE/A DE DIVISION | F27: F1 | G27: C | H27: 1601.95
A28: 23 | B28: 010478 | C28: GUARDIA BAEZ JUAN EUSEBIO | D28: 07179752 | E28: TECNICO/A EN LOGISTICA | F28: TA | G28: C | H28: 1170.31
A29: 24 | B29: 010479 | C29: GUERRERO TERRY VDA DE CARO NELLIDA CONSUELO | D29: 08659511 | E29: TRABAJADOR DE SERVIC. II | F29: NRR2 | G29: C | H29: 810.09
A30: 25 | B30: 010553 | C30: JAPA SANDOVAL VDA. DE AIQUIPA FLORENCIA | D30: 06848814 | E30: ARTESANO III | F30: TA | G30: V | H30: 865.09
A31: 26 | B31: 010484 | C31: LOPEZ PINEDO GEMMA | D31: 07233175 | E31: TECNICO/A ADMINIST. II | F31: TA | G31: C | H31: 928.17
A32: 27 | B32: 010486 | C32: MAGALLANES CORTEZ NORMA ESTELA | D32: 25505622 | E32: CAJERO/A II | F32: TB | G32: C | H32: 1035.03
A33: 28 | B33: 010488 | C33: MALCA SANDOVAL ROSA AMELIA | D33: 10379117 | E33: SECRETARIA IV | F33: TA | G33: C | H33: 918.69
A34: 29 | B34: 010489 | C34: MENDOZA DONAYRE DE ROJAS CARMEN AMANDA | D34: 09019985 | E34: TECNICO/A ADMINIST. III | F34: TA | G34: C | H34: 1214.01
A35: 30 | B35: 010539 | C35: MESTANZA YNGA VDA DE HERRERA GLADYS ANGELA | D35: 08445538 | E35: AUX. DE FARMACIA I | F35: NRR2 | G35: V | H35: 415
A36: 31 | B36: 010531 | C36: MOLINA MARIMON LEONOR | D36: 07243305 | E36: TECNICO/A ADMINIST. I | F36: TA | G36: S | H36: 1176.61
A37: 32 | B37: 010492 | C37: MONGE QUIJADA AIDA LUZ | D37: 08735973 | E37: ASIST. SOCIAL | F37: 27 | G37: C | H37: 1333.49
A38: 33 | B38: 010493 | C38: MONTERO ORDINOLA JUAN CARLOS | D38: 07217436 | E38: PSICOLOGO | F38: 82 | G38: C | H38: 891.82
A39: 34 | B39: 010532 | C39: MORAN SEMINARIO LUCERO MILAGRITOS | D39: 09030287 | E39: TEC. SANITARIO I | F39: TA | G39: V | H39: 826.85
A40: 35 | B40: 010496 | C40: OLIVER PAREDES SANTOS FELIPE ERNESTO | D40: 07744628 | E40: MEDICO PSIQUIATRA | F40: 18 | G40: C | H40: 2128.37
A41: 36 | B41: 010878 | C41: ORRILLO RODRIGUEZ VDA DE CHAVEZ DORA GUILLERM | D41: 08210503 | E41: MEDICO PSIQUIATRA | F41: 19 | G41: V | H41: 1596.71
A42: 37 | B42: 010982 | C42: ORTIZ ESPINOZA VDA DE MILLA TRINIDAD | D42: 07111377 | E42: OPERAD. EQUIPO MEDICO I | F42: TA | G42: V | H42: 960
A43: 38 | B43: 010497 | C43: PAJUELO ANAYA TEOGENES OSAY | D43: 08696123 | E43: ENFERMERA/O | F43: 14 | G43: C | H43: 1358.02
A44: 39 | B44: 010498 | C44: PATRON LENGUA VIOLETA ANGELICA | D44: 07195951 | E44: TECNICO/A ADMINIST. I | F44: TA | G44: C | H44: 1225.86
A45: 40 | B45: 010534 | C45: PINO BOCANEGRA VDA DE HUAMANCAYO JESUS ISRAEL | D45: 06023517 | E45: ENFERMERA/O | F45: 14 | G45: V | H45: 757
A46: 41 | B46: 010506 | C46: RAMIREZ QUEZADA VDA. DE RODRIGUEZ CLARA | D46: 06940605 | E46: ARTESANO III | F46: TA | G46: V | H46: 897
A47: 42 | B47: 010504 | C47: REYES LOSTAUNAU MARIA ANTONIETA | D47: 25614859 | E47: NUTRICIONISTA | F47: 27 | G47: C | H47: 1300.55
A48: 43 | B48: 010848 | C48: ROLDAN COLAN VDA DE BAUTISTA RAFAELA | D48: 08544280 | E48: TECNICO/A ADMINIST. I | F48: TA | G48: V | H48: 1700
A49: 44 | B49: 010536 | C49: ROSALES DAVILA VERONICA REBECA | D49: 09913949 | E49: TECNICO/A ADMINIST. III | F49: TA | G49: S | H49: 382.21
A50: 45 | B50: 010508 | C50: SAAVEDRA ORTIZ NELLY FLORENCIA | D50: 10315668 | E50: PSICOLOGO | F50: 84 | G50: C | H50: 1270.55
A51: 46 | B51: 010510 | C51: SALES RAMOS LUIS ALBERTO | D51: 10831806 | E51: JEFE/A DE DIVISION | F51: NRR2 | G51: C | H51: 475
A52: 47 | B52: 010511 | C52: SANCHEZ RENTERA DE ALVARADO OTILIA | D52: 08447447 | E52: TEC. EN ENFERMERIA II | F52: TA | G52: C | H52: 1289.49
A53: 48 | B53: 010512 | C53: SARMIENTO HURTADO ENRIQUE EDUARDO | D53: 25836822 | E53: TECNOLOGO MEDICO | F53: 71 | G53: C | H53: 969.64
A54: 49 | B54: 010513 | C54: SILVA FLORES ESTHER YOLANDA | D54: 06072255 | E54: EDUCADOR PARA LA SALUD I | F54: PB | G54: C | H54: 1253.57
A55: 50 | B55: 010514 | C55: SOGI UEMATSU CECILIA GRACIELA RURI | D55: 10143433 | E55: MEDICO PSIQUIATRA | F55: 17 | G55: C | H55: 2577.13
A56: 51 | B56: 010500 | C56: SOLANO DEL CASTILLO VDA DE CASTILLO FRANCISCA | D56: 08009425 | E56: TECNICO/A ADMINIST. I | F56: TA | G56: V | H56: 1012
A57: 52 | B57: 010552 | C57: SOLIS BROCK VDA.DE BROCK LILIA GRACIANA | D57: 25680648 | E57: TEC. EN TRANSPORTE I | F57: TA | G57: V | H57: 575.33
A58: 53 | B58: 010515 | C58: SOTELO RODRIGUEZ VDA DE CHICHIPE ORFELINDA | D58: 08609547 | E58: TEC. EN ENFERMERIA II | F58: TA | G58: C | H58: 1251.16
A59: 54 | B59: 010476 | C59: TATAJE ROBLES VDA DE GONZALES JUANA | D59: 08085869 | E59: TEC. EN ENFERMERIA II | F59: TA | G59: V | H59: 960.23
A60: 55 | B60: 010884 | C60: TORRES FUENTES MANUEL ANTONIO | D60: 06705298 | E60: TECNICO/A ADMINIST. I | F60: TA | G60: V | H60: 969
A61: 56 | B61: 010540 | C61: TORRES MENDOZA VDA DE CESTI CARMEN ROSA | D61: 08491605 | E61: ARTESANO IV | F61: TA | G61: V | H61: 1148.3
A62: 57 | B62: 010518 | C62: UCAÑAN VILLEGAS ZULEMA | D62: 08657319 | E62: TEC. ADMINISTRATIVO | F62: TA | G62: C | H62: 913.57
A63: 58 | B63: 010505 | C63: VEGA GAYTAN MAURO | D63: 08510936 | E63: ARTESANO I | F63: TB | G63: C | H63: 1277.89
A64: 59 | B64: 010521 | C64: VERGARA DHAGA DEL CASTILLO MARIELA ROSARIO | D64: 07561371 | E64: SUB DIRECTOR | F64: F2 | G64: C | H64: 1349.88
A65: 60 | B65: 010522 | C65: WARTHON GRAJEDA DANTE EFRAIN | D65: 25627924 | E65: MEDICO PSIQUIATRA | F65: 17 | G65: C | H65: 2640.73
A66: 61 | B66: 010524 | C66: ZELAYA AGUERO RUFINO | D66: 08585035 | E66: TECNICO/A ADMINIST. III | F66: TA | G66: C | H66: 1282.09
A67: 62 | B67: 010693 | C67: ZORRILLA GARAYAR ELIZABETH NERIDA | D67: 06036829 | E67: ENFERMERA/O | F67: 14 | G67: C | H67: 1184.94
A68: T O T A L P L A N I L L A | H68: =SUM(H6:H67) -> 73884.01
B69: JVM/BVR/rcc.
G70: 03 de setiembre 2021
